{"text_format":"3","workbook":"xlsx","n_sheets":11,"sheets":["州直事业单位","库尔勒市","焉耆县","和静县","和硕县","博湖县","轮台县","尉犁县","且末县","若羌县","库尔勒经济技术开发区"],"not_rendered":{"defined_names":11},"read":"whole","date_system":"1900"}

{"sheet":"州直事业单位","index":0,"n_rows":70,"n_cols":18,"rows_kept":70,"merged":[[0,0,0,17],[1,0,2,0],[1,1,2,1],[1,2,2,2],[1,3,2,3],[1,4,2,4],[1,5,2,5],[1,6,2,6],[1,7,2,7],[1,8,1,14],[1,15,2,15],[1,16,2,16],[1,17,2,17]]}
["新疆巴州事业单位2025年下半年引进硕士研究生等优秀专业人才岗位表（州直事业单位）"]
["序号","岗位代码","主管单位","用人单位","招聘科室","岗位名称","岗位类别","招聘人数","岗位条件",{"$nulls":6},"政策咨询电话","岗位描述","备注"]
[{"$nulls":8},"年龄","学历","学位","专业大类及代码","专业类及代码","研究生:三级专业目录","岗位其他要求"]
[{"$f":"ROW()-3","v":1},20250101,"巴州党委组织部","巴州党委组织部举报中心（巡视巡察审计整改中心）","业务室","工作人员","专业技术岗位",1,"30周岁及以下","研究生及以上","硕士学位及以上","研究生-(08)工学","研究生-(0812)计算机科学与技术,研究生-(0835)软件工程,研究生-(0839)网络空间安全","研究生-(081203)计算机应用技术",null,"0996-2012401","主要从事计算机应用技术和软件工程、网络空间安全等工作"]
[2,20250102,"巴州党委组织部","巴州干部人事档案中心","业务室","工作人员","专业技术岗位",1,"30周岁及以下","研究生及以上","硕士学位及以上","研究生-(03)法学","研究生-(0303)社会学,研究生-(0352)社会工作","研究生-(030301)社会学",null,"0996-2012401","主要从事社会学相关工作"]
[3,20250103,"巴州党委政法委员会","巴州网格化服务管理中心","矛盾纠纷调解室","工作人员","专业技术岗位",1,"30周岁及以下","研究生及以上","硕士学位及以上","研究生-(03)法学","研究生-(0301)法学",null,"需具有C类及以上法律职业资格","0996-2622067","主要从事矛盾纠纷调解工作","需经常深入基层一线，建议男性报考"]
[4,20250104,"巴州党委统战部","巴州党委统战部所属事业单位","业务科室","工作人员","专业技术岗位",1,"30周岁及以下","研究生及以上","硕士学位及以上","研究生-(03)法学,研究生-(12)管理学","研究生-(0352)社会工作,研究生-(1204)公共管理学",null,"须中共党员（含预备党员）","0996-2012989","主要从事统战领域相关工作","岗位有长期出差需求，建议男性报考"]
[5,20250105,"巴州党委统战部","巴州社会主义学院","业务科室","工作人员","专业技术岗位",1,"35周岁及以下","研究生及以上","硕士学位及以上","研究生-(03)法学","研究生-(0305)马克思主义理论",null,null,"0996-8660323","主要从事统一战线教育培训工作"]
[6,20250106,"巴州党委社会工作部","巴州社会工作事务中心","业务室","工作人员","专业技术岗位",1,"30周岁及以下","研究生及以上","硕士学位及以上","研究生-(03)法学","研究生-(0303)社会学,研究生-(0352)社会工作",null,null,"0996-2620663","主要从事文字材料撰写等工作"]
[7,20250107,"巴州党委党校（行政学院）","巴州党委党校（行政学院）","政治哲学教研室","教师","专业技术岗位",1,"35周岁及以下","研究生及以上","硕士学位及以上","研究生-(02)经济学","研究生-(0201)理论经济学",null,null,"0996-2226930","主要从事教学工作"]
[8,20250108,"巴州党委党校（行政学院）","巴州党委党校（行政学院）","政治哲学教研室","教师","专业技术岗位",1,"35周岁及以下","研究生及以上","硕士学位及以上","研究生-(02)经济学","研究生-(0201)理论经济学",null,"限少数民族报考","0996-2226930","主要从事教学工作"]
[9,20250109,"巴州党委党校（行政学院）","巴州党委党校（行政学院）","政治哲学教研室","教师","专业技术岗位",1,"35周岁及以下","研究生及以上","硕士学位及以上","研究生-(03)法学","研究生-(0304)民族学",null,null,"0996-2226930","主要从事教学工作"]
[10,20250110,"巴州党委党校（行政学院）","巴州党委党校（行政学院）","政治哲学教研室","教师","专业技术岗位",1,"35周岁及以下","研究生及以上","硕士学位及以上","研究生-(01)哲学","研究生-(0101)哲学",null,null,"0996-2226930","主要从事教学工作"]
[11,20250111,"巴州政务服务和公共资源交易中心","巴州政务服务和公共资源交易中心","信息档案科","信息平台维护员","专业技术岗位",1,"30周岁及以下","研究生及以上","硕士学位及以上","研究生-(08)工学","研究生-(0812)计算机科学与技术",null,null,"0996-2505261","主要从事信息平台维护工作。"]
[12,20250112,"巴州政务服务和公共资源交易中心","巴州政务服务和公共资源交易中心","政府采购交易科","项目经办员","专业技术岗位",1,"30周岁及以下","研究生及以上","硕士学位及以上","研究生-(02)经济学","研究生-(0201)理论经济学,研究生-(0202)应用经济学,研究生-(0251)金融,研究生-(0252)应用统计,研究生-(0253)税务,研究生-(0254)国际商务,研究生-(0256)资产评估,研究生-(0257)审计,研究生-(0258)数字经济,研究生-(0270)统计学",null,null,"0996-2505261","主要从事政府采购工作。"]
[13,20250113,"巴州教育局","巴州德育中心","业务科室","工作人员","专业技术岗位",1,"30周岁及以下","研究生及以上","硕士学位及以上","研究生-(04)教育学","研究生-(0451)教育","研究生-(045102)学科教学 (思政),研究生-(045103)学科教学 (语文),研究生-(045108)学科教学(英语)","1.需取得与报考学科一致的高中教师资格证；\n2.需取得二级乙等及以上普通话等级证书（语文学科需取得二级甲等及以上普通话等级证书）","0996-8693690","主要从事教育管理工作"]
[14,20250114,"巴州教育局","巴州教育工会","业务科室","工作人员","专业技术岗位",1,"30周岁及以下","研究生及以上","硕士学位及以上","研究生-(07)理学","研究生-(0710)生物学",null,"1.需取得二级乙等及以上普通话等级证书","0996-8693690","主要从事教育管理工作"]
[15,20250115,"巴州教育局","巴州维护稳定工作办公室","业务科室","工作人员","专业技术岗位",1,"30周岁及以下","研究生及以上","硕士学位及以上","研究生-(03)法学,研究生-(04)教育学","研究生-(0302)政治学,研究生-(0451)教育","研究生-(030201)政治学理论,研究生-(045103)学科教学 (语文),研究生-(045108)学科教学(英语)","1.需取得与报考学科一致的高中教师资格证；\n2.需取得二级乙等及以上普通话等级证书（语文学科需取得二级甲等及以上普通话等级证书）","0996-8693690","主要从事教育管理工作"]
[16,20250116,"巴州教育局","巴州维护稳定工作办公室","业务科室","工作人员","专业技术岗位",1,"30周岁及以下","研究生及以上","硕士学位及以上","研究生-(04)教育学","研究生-(0451)教育","研究生-(045104)学科教学(数学) ,研究生-(045105)学科教学(物理),研究生-(045106)学科教学 (化学) ","需取得二级乙等及以上普通话等级证书","0996-8693690","主要从事教育管理工作"]
[17,20250117,"巴州教育局","巴州维护稳定工作办公室","业务科室","工作人员","专业技术岗位",1,"30周岁及以下","研究生及以上","硕士学位及以上","研究生-(04)教育学","研究生-(0451)教育","研究生-(045108)学科教学(英语),研究生-(045109)学科教学 (历史),研究生-(045110)学科教学(地理) ","1.中共党员\n2.需取得二级乙等及以上普通话等级证书\n3.需取得与报考学科一致的高中教师资格证；\n4.限少数民族报考","0996-8693690","主要从事教育管理工作"]
[18,20250118,"巴州教育局","巴州教育考试中心","业务科室","工作人员","专业技术岗位",1,"30周岁及以下","研究生及以上","硕士学位及以上","研究生-(04)教育学,研究生-(08)工学","研究生-(0451)教育,研究生-(0812)计算机科学与技术","研究生-(045104)学科教学(数学) ","需取得二级乙等及以上普通话等级证书","0996-8693690","主要从事教育管理工作"]
[19,20250119,"巴州教育局","巴州教育考试中心","业务科室","工作人员","专业技术岗位",1,"30周岁及以下","研究生及以上","硕士学位及以上","研究生-(04)教育学","研究生-(0451)教育","研究生-(045102)学科教学 (思政),研究生-(045117)科学与技术教育","1.中共党员2.需取得二级乙等及以上普通话等级证书3.需取得高中政治教师资格证；4.限少数民族报考","0996-8693690","主要从事教育管理工作"]
[20,20250120,"巴州教育局","巴州第二中学","高中英语组","高中英语","专业技术岗位",1,"35周岁及以下","研究生及以上","硕士学位及以上","研究生-(04)教育学,研究生-(05)文学,研究生-(其他)分类","研究生-(0451)教育,研究生-(0502)外国语言文学,研究生-(0551)翻译,研究生-(9702)02英语","研究生-(045108)学科教学(英语),研究生-(050201)英语语言文学,研究生-(055101)英语笔译,研究生-(055102)英语口译","1.需取得高中英语教师资格证；\n2.需取得二级乙等及以上普通话证书。","0996-8693691","主要从事高中英语教学工作"]
[21,20250121,"巴州教育局","巴州第二中学","高中语文组","高中语文","专业技术岗位",1,"35周岁及以下","研究生及以上","硕士学位及以上","研究生-(04)教育学,研究生-(05)文学","研究生-(0451)教育,研究生-(0501)中国语言文学","研究生-(045103)学科教学 (语文),研究生-(050102)语言学及应用语言学,研究生-(050103)汉语言文字学","1.需取得高中语文教师资格证；\n2.需取得二级甲等及以上普通话证书。\n","0996-8693691","主要从事高中语文教学工作"]
[22,20250122,"巴州教育局","巴州第二中学","高中语文组","高中语文","专业技术岗位",1,"35周岁及以下","研究生及以上","硕士学位及以上","研究生-(04)教育学","研究生-(0451)教育","研究生-(045103)学科教学 (语文)","1.需取得高中语文教师资格证；\n2.需取得二级甲等及以上普通话证书；\n3.限少数民族。","0996-8693691","主要从事高中语文教学工作"]
[23,20250123,"巴州教育局","巴州师范学校","教务科研处","教师","专业技术岗位",1,"35周岁及以下","研究生及以上","硕士学位及以上","研究生-(03)法学","研究生-(0305)马克思主义理论",null,"1.需取得中职或高中政治教师资格证；\n2.需取得二级乙等及以上普通话证书。","0996-2257615","主要从事教育教学工作"]
[24,20250124,"巴州教育局","巴州开放大学","业务科室","教师","专业技术岗位",1,"35周岁及以下","研究生及以上","硕士学位及以上","研究生-(03)法学","研究生-(0301)法学",null,"1.需需具有C类及以上法律职业资格；\n2.限少数民族报考","0996-2228703","主要从事教育教学工作。"]
[25,20250125,"巴州教育局","巴州开放大学","业务科室","教师","专业技术岗位",1,"35周岁及以下","研究生及以上","硕士学位及以上","研究生-(12)管理学","研究生-(1256)工程管理",null,"需取得二级建造师证书（建筑或水利）","0996-2228703","主要从事教育教学工作。"]
[26,20250126,"巴州教育局","巴音郭楞职业技术学院","电子信息工程学院","教师","专业技术岗位",2,"35周岁及以下","研究生及以上","硕士学位及以上","研究生-(08)工学","研究生-(0812)计算机科学与技术",null,null,"0996-5898195","主要从事高职院校教学工作"]
[27,20250127,"巴州教育局","巴音郭楞职业技术学院","电子信息工程学院","教师","专业技术岗位",1,"35周岁及以下","研究生及以上","硕士学位及以上","研究生-(08)工学","研究生-(0835)软件工程",null,null,"0996-5898195","主要从事高职院校教学工作"]
[28,20250128,"巴州教育局","巴音郭楞职业技术学院","生物工程学院","教师","专业技术岗位",1,"35周岁及以下","研究生及以上","硕士学位及以上","研究生-(09)农学","研究生-(0902)园艺学",null,"限少数民族报考","0996-5898195","主要从事高职院校教学工作"]
[29,20250129,"巴州教育局","巴音郭楞职业技术学院","生物工程学院","教师","专业技术岗位",1,"35周岁及以下","研究生及以上","硕士学位及以上","研究生-(08)工学","研究生-(0828)农业工程",null,null,"0996-5898195","主要从事高职院校教学工作"]
[30,20250130,"巴州教育局","巴音郭楞职业技术学院","生物工程学院","教师","专业技术岗位",1,"40周岁及以下","研究生及以上","硕士学位及以上","研究生-(09)农学","研究生-(0951)农业",null,null,"0996-5898195","主要从事高职院校教学工作"]
[31,20250131,"巴州教育局","巴音郭楞职业技术学院","机械电气工程学院","教师","专业技术岗位",1,"35周岁及以下","研究生及以上","硕士学位及以上","研究生-(08)工学","研究生-(0808)电气工程",null,null,"0996-5898195","主要从事高职院校教学工作"]
[32,20250132,"巴州教育局","巴音郭楞职业技术学院","机械电气工程学院","教师","专业技术岗位",1,"35周岁及以下","研究生及以上","硕士学位及以上","研究生-(08)工学","研究生-(0855)机械",null,null,"0996-5898195","主要从事高职院校教学工作"]
[33,20250133,"巴州教育局","巴音郭楞职业技术学院","机械电气工程学院","教师","专业技术岗位",1,"35周岁及以下","研究生及以上","硕士学位及以上","研究生-(08)工学","研究生-(0855)机械",null,"限少数民族报考","0996-5898195","主要从事高职院校教学工作"]
[34,20250134,"巴州教育局","巴音郭楞职业技术学院","机械电气工程学院","教师","专业技术岗位",2,"35周岁及以下","研究生及以上","硕士学位及以上","研究生-(08)工学","研究生-(0811)控制科学与工程",null,null,"0996-5898195","主要从事高职院校教学工作"]
[35,20250135,"巴州教育局","巴音郭楞职业技术学院","机械电气工程学院","教师","专业技术岗位",1,"35周岁及以下","研究生及以上","硕士学位及以上","研究生-(08)工学","研究生-(0811)控制科学与工程",null,"限少数民族报考","0996-5898195","主要从事高职院校教学工作"]
[36,20250136,"巴州教育局","巴音郭楞职业技术学院","交通工程学院","教师","专业技术岗位",1,"35周岁及以下","研究生及以上","硕士学位及以上","研究生-(08)工学","研究生-(0802)机械工程",null,null,"0996-5898195","主要从事高职院校教学工作"]
[37,20250137,"巴州教育局","巴音郭楞职业技术学院","交通工程学院","教师","专业技术岗位",1,"35周岁及以下","研究生及以上","硕士学位及以上","研究生-(08)工学","研究生-(0823)交通运输工程",null,"限少数民族报考","0996-5898195","主要从事高职院校教学工作"]
[38,20250138,"巴州教育局","巴音郭楞职业技术学院","交通工程学院","教师","专业技术岗位",1,"35周岁及以下","研究生及以上","硕士学位及以上","研究生-(08)工学","研究生-(0802)机械工程",null,"限少数民族报考","0996-5898195","主要从事高职院校教学工作"]
[39,20250139,"巴州卫生健康委员会","巴州人民医院","中医科","医生","专业技术岗位",1,"35周岁及以下","研究生及以上","硕士学位及以上","研究生-(10)医学","研究生-(1005)中医学","研究生-(100508)中医骨伤科学","需取得执业医师资格和执业医师执业证书（执业范围：中医专业）或已通过医师执业考试执业范围未确定，需取得中医专业住院医师规范化培训合格证书","0996-2039630","主要从事中医骨伤相关诊疗工作，"]
[40,20250140,"巴州卫生健康委员会","巴州人民医院","中医科","医生","专业技术岗位",1,"35周岁及以下","研究生及以上","硕士学位及以上","研究生-(10)医学","研究生-(1006)中西医结合","研究生-(100602)中西医结合临床","需取得执业医师资格和执业医师执业证书（执业范围：中西医结合专业）或已通过医师执业考试执业范围未确定，需取得中医专业住院医师规范化培训合格证书","0996-2039630","主要从事中西医相关诊疗工作"]
[41,20250141,"巴州卫生健康委员会","巴州人民医院","神经内二科","医生","专业技术岗位",1,"35周岁及以下","研究生及以上","硕士学位及以上","研究生-(10)医学","研究生-(1002)临床医学","研究生-(100204)神经病学","需取得执业医师资格和执业医师执业证书（执业范围：内科专业）或已通过医师执业考试执业范围未确定，需取得神经内科专业住院医师规范化培训合格证书","0996-2039630","主要从事神经内科相关疾病诊疗工作"]
[42,20250142,"巴州卫生健康委员会","巴州人民医院","泌尿外二科","医生","专业技术岗位",1,"35周岁及以下","研究生及以上","硕士学位及以上","研究生-(10)医学","研究生-(1002)临床医学","研究生-(100210)外科学","需取得执业医师资格和执业医师执业证书（执业范围：外科专业）或已通过医师执业考试执业范围未确定，需取得住院医师规范化培训合格证书；\n限少数民族报考","0996-2039630","主要从事泌尿外科相关诊疗工作，"]
[43,20250143,"巴州卫生健康委员会","巴州人民医院","科教科","医技","专业技术岗位",1,"35周岁及以下","研究生及以上","硕士学位及以上","研究生-(07)理学","研究生-(0710)生物学","研究生-(071007)遗传学","需取得临床医学检验技术初级及以上资格（国家证）；\n限少数民族报考","0996-2039630","主要从事临床研究中心实验室相关工作"]
[44,20250144,"巴州卫生健康委员会","巴州第二人民医院（燕赵蒙医院）","康复医学科","医生","专业技术岗位",1,"35周岁及以下","研究生及以上","硕士学位及以上","研究生-(10)医学","研究生-(1005)中医学","研究生-(100512)针灸推拿学","需取得执业医师资格和执业医师执业证书（执业范围：中医专业）。并取得中医专业住院医师规范化培训合格证书。","0996-2155289","主要从事中医针灸推拿等临床诊疗工作。\n"]
[45,20250145,"巴州卫生健康委员会","巴州第二人民医院（燕赵蒙医院）","药剂科","药师","专业技术岗位",1,"35周岁及以下","研究生及以上","硕士学位及以上","研究生-(10)医学","研究生-(1008)中药学",null,null,"0996-2155289","主要从事药师工作\n"]
[46,20250146,"巴州卫生健康委员会","巴州疾病预防控制中心（州卫生监督所）","办公室","临床医学","专业技术岗位",1,"35周岁及以下","研究生及以上","硕士学位及以上","研究生-(10)医学","研究生-(1002)临床医学",null,null,"0996-2206282","主要从事医防协同、医防融合工作。"]
[47,20250147,"巴州卫生健康委员会","巴州疾病预防控制中心（州卫生监督所）","检验科","基础医学","专业技术岗位",1,"35周岁及以下","研究生及以上","硕士学位及以上","研究生-(10)医学","研究生-(1001)基础医学",null,null,"0996-2206282","主要从事预防医学检验工作"]
[48,20250148,"巴州民政局","巴州精神卫生中心","精神科","医生","专业技术岗位",3,"35周岁及以下","研究生及以上","硕士学位及以上","研究生-(10)医学","研究生-(1002)临床医学,研究生-(1051)临床医学","研究生-(100204)神经病学,研究生-(100205)精神病与精神卫生学,研究生-(105104)神经病学,研究生-(105105)精神病与精神卫生学","需取得执业医师资格和执业医师执业证书","0996-8690604","主要从事精神疾病医学诊疗工作"]
[49,20250149,"巴州民政局","巴州精神卫生中心","精神科","医生","专业技术岗位",1,"35周岁及以下","研究生及以上","硕士学位及以上","研究生-(10)医学","研究生-(1002)临床医学,研究生-(1051)临床医学","研究生-(100204)神经病学,研究生-(100205)精神病与精神卫生学,研究生-(105104)神经病学,研究生-(105105)精神病与精神卫生学","1.需取得执业医师资格和执业医师执业证书；\n2.限少数民族报考","0996-8690604","主要从事精神疾病医学诊疗工作"]
[50,20250150,"巴州民政局","巴州养老服务指导中心","办公室","工作人员","专业技术岗位",1,"35周岁及以下","研究生及以上","硕士学位及以上","研究生-(03)法学","研究生-(0303)社会学,研究生-(0352)社会工作",null,"限少数民族报考","0996-2024402","主要从事养老业务相关工作"]
[51,20250151,"巴州民政局","巴州儿童福利院","业务室","工作人员","专业技术岗位",1,"35周岁及以下","研究生及以上","硕士学位及以上","研究生-(10)医学","研究生-(1002)临床医学,研究生-(1004)公共卫生与预防医学","研究生-(100215)康复医学与理疗学,研究生-(100403)营养与食品卫生学",null,"0996-2259011\n13309969113","主要从事孤残儿童心理辅导、日常照护等工作"]
[52,20250152,"巴州发展和改革委员会（粮食和物资储备局）","巴州经济信息中心（巴州电子政务外网管理中心）","业务室","经济预测","专业技术岗位",1,"30周岁及以下","研究生及以上","硕士学位及以上","研究生-(02)经济学,研究生-(08)工学","研究生-(0201)理论经济学,研究生-(0202)应用经济学,研究生-(0251)金融,研究生-(0258)数字经济,研究生-(0805)材料科学与工程,研究生-(0819)矿业工程",null,null,"0996-2027033","主要从事宏观经济研究分析、经济运行形势预测和规划编制工作。"]
[53,20250153,"巴州工业和信息化局","巴州企业服务办公室","企业服务科","工作人员","专业技术岗位",1,"35周岁及以下","研究生及以上","硕士学位及以上","研究生-(08)工学","研究生-(0821)纺织科学与工程",null,null,"0996-2028769","主要从事纺织行业领域相关工作。"]
[54,20250154,"巴州农业农村局","巴州种蜂场","业务室","技术员","专业技术岗位",1,"35周岁及以下","研究生及以上","硕士学位及以上","研究生-(09)农学","研究生-(0904)植物保护,研究生-(0905)畜牧学","研究生-(090402)农业昆虫与害虫防治,研究生-(090501)动物遗传育种与繁殖,研究生-(090504)特种经济动物饲养",null,"0996-2166668","主要从事蜜蜂养殖、蜜蜂育种与繁殖、蜜蜂病虫害防治等。","特种经济动物专业仅限于蜂学研究方向"]
[55,20250155,"巴州农业农村局","巴州农产品质量安全检验检测中心","业务室","会计","专业技术岗位",1,"35周岁及以下","研究生及以上","硕士学位及以上","研究生-(02)经济学,研究生-(12)管理学","研究生-(0202)应用经济学,研究生-(1202)工商管理学,研究生-(1203)农林经济管理","研究生-(020204)金融学,研究生-(120201)会计学,研究生-(120301)农业经济管理",null,"0996-2505185","主要从事财务等相关工作"]
[56,20250156,"巴州市场监督管理局","巴州检验检测中心","计量检定所","检验员","专业技术岗位",2,"30周岁及以下","研究生及以上","硕士学位及以上","研究生-(07)理学,研究生-(08)工学","研究生-(0701)数学,研究生-(0702)物理学,研究生-(0801)力学,研究生-(0802)机械工程,研究生-(0803)光学工程,研究生-(0804)仪器科学与技术,研究生-(0805)材料科学与工程,研究生-(0807)动力工程及工程热物理,研究生-(0808)电气工程,研究生-(0809)电子科学与技术,研究生-(0810)信息与通信工程,研究生-(0811)控制科学与工程,研究生-(0812)计算机科学与技术,研究生-(0817)化学工程与技术,研究生-(0821)纺织科学与工程,研究生-(0837)安全科学与工程,研究生-(0855)机械,研究生-(0856)材料与化工",null,null,"0996-6882202","主要从事产品质量检验检测、计量检定、纤维检验、特种设备检验检测工作。"]
[57,20250157,"巴州市场监督管理局","巴州检验检测中心","纤维检验所","检验员","专业技术岗位",1,"30周岁及以下","研究生及以上","硕士学位及以上","研究生-(07)理学,研究生-(08)工学","研究生-(0701)数学,研究生-(0702)物理学,研究生-(0801)力学,研究生-(0802)机械工程,研究生-(0803)光学工程,研究生-(0804)仪器科学与技术,研究生-(0805)材料科学与工程,研究生-(0807)动力工程及工程热物理,研究生-(0808)电气工程,研究生-(0809)电子科学与技术,研究生-(0810)信息与通信工程,研究生-(0811)控制科学与工程,研究生-(0812)计算机科学与技术,研究生-(0817)化学工程与技术,研究生-(0821)纺织科学与工程,研究生-(0837)安全科学与工程,研究生-(0855)机械,研究生-(0856)材料与化工",null,"限少数民族报考","0996-6882202","主要从事产品质量检验、计量检定、纤维检验、特种设备检验检测工作。"]
[58,20250158,"巴州文化体育广播电视和旅游局","巴州歌舞团","声乐队","声乐演员","专业技术岗位",1,"30周岁及以下","研究生及以上","硕士学位及以上","研究生-(13)艺术学","研究生-(1352)音乐",null,null,"0996-2617611","主要从事声乐演唱和演出"]
[59,20250159,"巴州林业和草原局","巴州三北工程和防沙治沙中心","业务室","业务员","专业技术岗位",1,"35周岁及以下","研究生及以上","硕士学位及以上","研究生-(07)理学,研究生-(08)工学,研究生-(09)农学","研究生-(0713)生态学,研究生-(0829)林业工程,研究生-(0954)林业",null,null,"0996-2024932","主要从事沙产业发展及防沙治沙项目研究等工作"]
[60,20250160,"巴州林业和草原局","巴州三北工程和防沙治沙中心","业务室","业务员","专业技术岗位",1,"35周岁及以下","研究生及以上","硕士学位及以上","研究生-(07)理学,研究生-(08)工学,研究生-(09)农学","研究生-(0713)生态学,研究生-(0829)林业工程,研究生-(0954)林业",null,"限少数民族报考","0996-2024932","主要从事沙产业发展及防沙治沙项目研究等工作"]
[61,20250161,"巴州林业和草原局","巴州草原工作站","规划设计科","业务员","专业技术岗位",1,"35周岁及以下","研究生及以上","硕士学位及以上","研究生-(09)农学","研究生-(0904)植物保护,研究生-(0909)草学",null,null,"0996-2024932","主要从事草原保护与修复工作"]
[62,20250162,"巴州林业和草原局","巴州苗圃","业务室","业务员","专业技术岗位",1,"35周岁及以下","研究生及以上","硕士学位及以上","研究生-(08)工学,研究生-(09)农学","研究生-(0829)林业工程,研究生-(0902)园艺学,研究生-(0904)植物保护,研究生-(0907)林学,研究生-(0954)林业",null,null,"0996-2024932","主要从事林果新技术研究及推广工作"]
[63,20250163,"巴州自然资源局","巴州地质勘查质量评价中心","业务科室","工作人员","专业技术岗位",1,"35周岁及以下","研究生及以上","硕士学位及以上","研究生-(07)理学,研究生-(08)工学","研究生-(0705)地理学,研究生-(0708)地球物理学,研究生-(0709)地质学,研究生-(0818)地质资源与地质工程,研究生-(0819)矿业工程,研究生-(0830)环境科学与工程,研究生-(0857)资源与环境",null,"限少数民族报考","0996-2262230","主要从事巴州地质勘查质量评价中心相关工作"]
[64,20250164,"巴州自然资源局","巴州地质成果中心","业务科室","工作人员","专业技术岗位",1,"35周岁及以下","研究生及以上","硕士学位及以上","研究生-(07)理学,研究生-(08)工学","研究生-(0705)地理学,研究生-(0708)地球物理学,研究生-(0709)地质学,研究生-(0818)地质资源与地质工程,研究生-(0819)矿业工程,研究生-(0830)环境科学与工程,研究生-(0857)资源与环境",null,null,"0996-2262230","主要从事巴州地质成果中心相关工作"]
[{"$f":"ROW()-3","v":65},20250165,"巴州自然资源局","巴州地质成果中心","业务科室","工作人员","专业技术岗位",1,"35周岁及以下","研究生及以上","硕士学位及以上","研究生-(08)工学","研究生-(0813)建筑学,研究生-(0833)城乡规划学,研究生-(0853)城乡规划","研究生-(081303)城市规划与设计",null,"0996-2262230","主要从事巴州地质成果中心相关工作"]
[{"$f":"ROW()-3","v":66},20250166,"巴州自然资源局","巴州地质勘查中心","业务科室","工作人员","专业技术岗位",2,"35周岁及以下","研究生及以上","硕士学位及以上","研究生-(07)理学,研究生-(08)工学","研究生-(0705)地理学,研究生-(0708)地球物理学,研究生-(0709)地质学,研究生-(0818)地质资源与地质工程,研究生-(0819)矿业工程,研究生-(0830)环境科学与工程,研究生-(0857)资源与环境",null,null,"0996-2262230","主要从事巴州地质勘查中心相关工作"]
[{"$nulls":7},{"$f":"SUM(H4:H69)","v":72}]

{"sheet":"库尔勒市","index":1,"n_rows":46,"n_cols":18,"rows_kept":46,"merged":[[0,0,0,17],[1,0,1,17],[2,0,3,0],[2,1,3,1],[2,2,3,2],[2,3,3,3],[2,4,3,4],[2,5,3,5],[2,6,3,6],[2,7,3,7],[2,8,2,14],[2,15,3,15],[2,16,3,16],[2,17,3,17]]}
["新疆巴州事业单位2025年下半年引进硕士研究生等优秀专业人才岗位表（库尔勒市）"]
["引才优惠政策：\n一、人才公寓方面：由市委统一为事业单位引进的硕士研究生及以上学历人才，我市提供过渡性住房，并配备基本的生活设施。引进研究生服务期满三年后，可申请租房补贴每月300元，共计1.08万元。\n二、购房方面：由市委统一为事业单位引进的硕士研究生及以上学历人才，试用期满转正后，在我市购买商品房，可申请一次性购房补贴5万元。\n三、家属子女户籍、就业、就学方面：\n落户政策。由市委统一为事业单位引进的硕士研究生及以上学历人才，可凭毕业证来库申请办理落户手续，无社保缴费年限、居住年限、固定住所等限制。对引进人才的配偶、子女及其他直系亲属愿意随迁的，无条件办理落户手续。\n配偶安置就业方面。引才人员的配偶，对有就业意愿的，免费提供职业指导、职业培训、职业介绍等精准化就业服务。对想自主创业的，免费提供创业指导、创业培训、项目推介等服务。"]
["序号","岗位代码","主管单位","用人单位","招聘科室","岗位名称","岗位类别","招聘人数","岗位条件",{"$nulls":6},"政策咨询电话","岗位描述","备注"]
[{"$nulls":8},"年龄","学历","学位","专业大类及代码","专业类及代码","研究生:三级专业目录","岗位其他要求"]
[1,"20250201","库尔勒上库高新技术产业开发区管理委员会","库尔勒上库高新技术产业开发区管理委员会","业务室","业务员","专业技术岗位",1,"35周岁及以下","研究生及以上","硕士学位及以上","研究生-(08)工学","研究生-(0817)化学工程与技术,研究生-(0837)安全科学与工程,研究生-(0856)材料与化工",null,null,"0996-2168118","主要从事化工园区的安全监管、应急管理与救援、安全培训与教育等工作"]
[2,"20250202","库尔勒上库高新技术产业开发区管理委员会","库尔勒上库高新技术产业开发区管理委员会","业务室","业务员","专业技术岗位",1,"35周岁及以下","研究生及以上","硕士学位及以上","研究生-(08)工学","研究生-(0817)化学工程与技术,研究生-(0837)安全科学与工程,研究生-(0856)材料与化工",null,"限少数民族报考","0996-2168118","主要从事化工园区的安全监管、应急管理与救援、安全培训与教育等工作"]
[3,"20250203","库尔勒上库高新技术产业开发区管理委员会","库尔勒上库高新技术产业开发区管理委员会","业务室","业务员","专业技术岗位",1,"35周岁及以下","研究生及以上","硕士学位及以上","研究生-(02)经济学,研究生-(07)理学,研究生-(08)工学","研究生-(0202)应用经济学,研究生-(0251)金融,研究生-(0252)应用统计,研究生-(0714)统计学,研究生-(0805)材料科学与工程,研究生-(0820)石油与天然气工程,研究生-(0858)能源动力",null,null,"0996-2168118","主要从事重大项目前期手续办理、跟踪项目进展等工作"]
[4,"20250204","库尔勒上库高新技术产业开发区管理委员会","库尔勒上库高新技术产业开发区管理委员会","业务室","业务员","专业技术岗位",1,"35周岁及以下","研究生及以上","硕士学位及以上","研究生-(02)经济学,研究生-(08)工学","研究生-(0202)应用经济学,研究生-(0251)金融,研究生-(0805)材料科学与工程,研究生-(0820)石油与天然气工程,研究生-(0858)能源动力",null,null,"0996-2168118","主要从事招商引资、项目洽谈、合作协议拟定，招商活动的策划、筹备和实施等工作"]
[5,"20250205","库尔勒市纪律检查委员会","库尔勒市纠风办公室","综合室","业务员","专业技术岗位",1,"35周岁及以下","研究生及以上","硕士学位及以上","研究生-(03)法学,研究生-(05)文学,研究生-(07)理学,研究生-(12)管理学","研究生-(0301)法学,研究生-(0306)公安学,研究生-(0351)法律,研究生-(0501)中国语言文学,研究生-(0714)统计学,研究生-(1253)会计,研究生-(1257)审计",null,null,"0996-2168118","主要从事纪检监察工作"]
[6,"20250206","库尔勒市纪律检查委员会","库尔勒市纠风办公室","综合室","业务员","专业技术岗位",1,"35周岁及以下","研究生及以上","硕士学位及以上","研究生-(03)法学,研究生-(05)文学,研究生-(07)理学,研究生-(12)管理学","研究生-(0301)法学,研究生-(0306)公安学,研究生-(0351)法律,研究生-(0501)中国语言文学,研究生-(0714)统计学,研究生-(1253)会计,研究生-(1257)审计",null,"限少数民族报考","0996-2168118","主要从事纪检监察工作"]
[7,"20250207","库尔勒市教育局","库尔勒市教育研究中心","教研室 ","教研员","专业技术岗位",1,"35周岁及以下","研究生及以上","硕士学位及以上","研究生-(04)教育学","研究生-(0451)教育","研究生-(045103)学科教学 (语文)","1.需取得高级中学教师资格证；2.需取得普通话二级甲等及以上普通话等级证书","0996-2168118","主要从事教研员工作"]
[8,"20250208","库尔勒市教育局","库尔勒市教育研究中心","教研室","教研员","专业技术岗位",1,"35周岁及以下","研究生及以上","硕士学位及以上","研究生-(04)教育学","研究生-(0451)教育","研究生-(045104)学科教学(数学) ","1.需取得高级中学教师资格证；2.需取得普通话二级乙等及以上普通话等级证书","0996-2168118","主要从事教研员工作"]
[9,"20250209","库尔勒市教育局","库尔勒市教育研究中心","教研室","教研员","专业技术岗位",1,"35周岁及以下","研究生及以上","硕士学位及以上","研究生-(04)教育学","研究生-(0451)教育","研究生-(045105)学科教学(物理)","1.需取得高级中学教师资格证；2.需取得普通话二级乙等及以上普通话等级证书；3.限少数民族报考","0996-2168118","主要从事教研员工作"]
[10,"20250210","库尔勒市教育局","库尔勒市青少年校外活动中心","综合业务室","业务员","专业技术岗位",1,"35周岁及以下","研究生及以上","硕士学位及以上","研究生-(08)工学","研究生-(0809)电子科学与技术,研究生-(0812)计算机科学与技术",null,"1.需取得高级中学教师资格证；2.需取得普通话二级乙等及以上普通话等级证书","0996-2168118","主要从事计算机课程教育教学、课题研究等工作"]
[11,"20250211","库尔勒市教育局","库尔勒市远程教育主控室","信息中心","业务员","专业技术岗位",2,"35周岁及以下","研究生及以上","硕士学位及以上","研究生-(08)工学","研究生-(0812)计算机科学与技术,研究生-(0839)网络空间安全,研究生-(0854)电子信息",null,null,"0996-2168118","主要从事教育系统网络处理工作"]
[12,"20250212","库尔勒市发展和改革委员会","库尔勒市项目服务中心","业务室","业务员","专业技术岗位",1,"35周岁及以下","研究生及以上","硕士学位及以上","研究生-(08)工学","研究生-(0817)化学工程与技术,研究生-(0858)能源动力",null,"限少数民族报考","0996-2168118","主要从事项目管理工作"]
[13,"20250213","库尔勒市商务和工业信息化局","库尔勒市投资促进服务中心","业务室","业务员","专业技术岗位",2,"35周岁及以下","研究生及以上","硕士学位及以上","研究生-(05)文学","研究生-(0501)中国语言文学,研究生-(0503)新闻传播学,研究生-(0552)新闻与传播",null,null,"0996-2168118","主要从事政府对外宣传推介及招商引资工作"]
[14,"20250214","库尔勒市商务和工业信息化局","库尔勒市投资促进服务中心","业务室","业务员","专业技术岗位",1,"35周岁及以下","研究生及以上","硕士学位及以上","研究生-(02)经济学","研究生-(0201)理论经济学,研究生-(0202)应用经济学,研究生-(0252)应用统计,研究生-(0270)统计学",null,"限少数民族报考","0996-2168118","主要从事对外招商引资及产业链分析工作"]
[15,"20250215","库尔勒市商务和工业信息化局","库尔勒市投资促进服务中心","业务室","业务员","专业技术岗位",1,"35周岁及以下","研究生及以上","硕士学位及以上","研究生-(08)工学","研究生-(0812)计算机科学与技术,研究生-(0817)化学工程与技术,研究生-(0821)纺织科学与工程",null,null,"0996-2168118","主要从事对外招商引资及产业链分析工作"]
[16,"20250216","库尔勒市财政局（国资委）","库尔勒市工资统发办公室","工资统发办公室","业务员","专业技术岗位",1,"35周岁及以下","研究生及以上","硕士学位及以上","研究生-(02)经济学,研究生-(12)管理学","研究生-(0202)应用经济学,研究生-(0251)金融,研究生-(1253)会计,研究生-(1257)审计",null,null,"0996-2168118","主要从事审查财政收支、审计监督等工作"]
[17,"20250217","库尔勒市水利局","库尔勒市地下水资源管理办公室","业务室","业务员","专业技术岗位",1,"35周岁及以下","研究生及以上","硕士学位及以上","研究生-(08)工学","研究生-(0815)水利工程",null,null,"0996-2168118","主要从事地下水资源管理相关工作"]
[18,"20250218","库尔勒市林业和草原局","库尔勒市林业科学技术推广站","业务室","业务员","专业技术岗位",1,"35周岁及以下","研究生及以上","硕士学位及以上","研究生-(08)工学,研究生-(09)农学,研究生-(12)管理学","研究生-(0829)林业工程,研究生-(0907)林学,研究生-(1203)农林经济管理",null,null,"0996-2168118","主要从事林草技术推广等工作"]
[19,"20250219","库尔勒市文化体育广播电视和旅游局","库尔勒市天鹅河景区管理服务中心","业务室","业务员","专业技术岗位",1,"35周岁及以下","研究生及以上","硕士学位及以上","研究生-(03)法学","研究生-(0301)法学,研究生-(0351)法律",null,"限少数民族报考","0996-2168118","主要从事文旅项目合同审定、规划、协议内容把关等工作"]
[20,"20250220","库尔勒市卫生健康委员会","库尔勒市第一人民医院","消化肿瘤科","医生","专业技术岗位",1,"35周岁及以下","研究生及以上","硕士学位及以上","研究生-(10)医学","研究生-(1002)临床医学","研究生-(100201)内科学",null,"0996-2168118","主要从事消化肿瘤科工作","具有中级及以上（消化内科）专业技术资格的年龄可放宽至40周岁"]
[21,"20250221","库尔勒市卫生健康委员会","库尔勒市第一人民医院","肿瘤介入科","医生","专业技术岗位",1,"35周岁及以下","研究生及以上","硕士学位及以上","研究生-(10)医学","研究生-(1002)临床医学","研究生-(100214)肿瘤学",null,"0996-2168118","主要从事肿瘤介入科工作","具有中级及以上（肿瘤内科学）专业技术资格的年龄可放宽至40周岁"]
[22,"20250222","库尔勒市卫生健康委员会","库尔勒市第二人民医院","临床科室","医生","专业技术岗位",1,"35周岁及以下","研究生及以上","硕士学位及以上","研究生-(10)医学","研究生-(1002)临床医学","研究生-(100215)康复医学与理疗学",null,"0996-2168118","主要从事康复治疗服务工作"]
[23,"20250223","库尔勒市卫生健康委员会","库尔勒市第二人民医院","临床科室","医生","专业技术岗位",1,"35周岁及以下","研究生及以上","硕士学位及以上","研究生-(10)医学","研究生-(1002)临床医学","研究生-(100211)妇产科学","限少数民族报考","0996-2168118","主要从事妇产科基本医疗工作"]
[24,"20250224","库尔勒市卫生健康委员会","库尔勒市妇幼保健计划生育服务中心","孕产保健部","医生","专业技术岗位",1,"35周岁及以下","研究生及以上","硕士学位及以上","研究生-(10)医学","研究生-(1002)临床医学","研究生-(100211)妇产科学",null,"0996-2168118","主要从事妇科、产科诊疗等工作"]
[25,"20250225","库尔勒市卫生健康委员会","库尔勒市妇幼保健计划生育服务中心","儿童保健部","医生","专业技术岗位",1,"35周岁及以下","研究生及以上","硕士学位及以上","研究生-(10)医学","研究生-(1002)临床医学","研究生-(100202)儿科学",null,"0996-2168118","主要从事儿科诊疗等工作"]
[26,"20250226","库尔勒市卫生健康委员会","库尔勒市妇幼保健计划生育服务中心","保健管理科","医生","专业技术岗位",1,"35周岁及以下","研究生及以上","硕士学位及以上","研究生-(10)医学","研究生-(1004)公共卫生与预防医学",null,"限少数民族报考","0996-2168118","主要从事公共卫生事业管理等工作"]
[27,"20250227","库尔勒市城乡发展服务中心","库尔勒市城乡发展服务中心","业务室","业务员","专业技术岗位",2,"35周岁及以下","研究生及以上","硕士学位及以上","研究生-(08)工学","研究生-(0813)建筑学,研究生-(0814)土木工程,研究生-(0833)城乡规划学,研究生-(0851)建筑学,研究生-(0853)城乡规划",null,null,"0996-2168118","主要从事库尔勒市各级国土空间规划编制报批及规划方案审查报批工作"]
[28,"20250228","库尔勒市城乡发展服务中心","库尔勒市城乡发展服务中心","业务室","业务员","专业技术岗位",1,"35周岁及以下","研究生及以上","硕士学位及以上","研究生-(08)工学","研究生-(0813)建筑学,研究生-(0814)土木工程,研究生-(0833)城乡规划学,研究生-(0851)建筑学,研究生-(0853)城乡规划",null,"限少数民族报考","0996-2168118","主要从事库尔勒市各级国土空间规划编制报批及规划方案审查报批工作"]
[29,"20250229","库尔勒市残疾人联合会","库尔勒市残疾人就业服务所","业务室","业务员","专业技术岗位",1,"35周岁及以下","研究生及以上","硕士学位及以上","研究生-(01)哲学,研究生-(03)法学,研究生-(05)文学，研究生-(12)管理学","研究生-(0101)哲学,研究生-(0301)法学,研究生-(0501)中国语言文学，研究生-(1202)工商管理",null,null,"0996-2168118","主要从事残疾人管理、联系、服务和维权工作"]
[30,"20250230","库尔勒市总工会","库尔勒市工人文化宫","业务室","业务员","专业技术岗位",1,"35周岁及以下","研究生及以上","硕士学位及以上","研究生-(03)法学,研究生-(05)文学,研究生-(13)艺术学","研究生-(0303)社会学,研究生-(0501)中国语言文学,研究生-(1301)艺术学",null,null,"0996-2168118","主要从事文体活动组织工作"]
[31,"20250231","库尔勒市总工会","库尔勒市工人文化宫","业务室","业务员","专业技术岗位",1,"35周岁及以下","研究生及以上","硕士学位及以上","研究生-(03)法学,研究生-(05)文学","研究生-(0301)法学,研究生-(0303)社会学,研究生-(0501)中国语言文学",null,"限少数民族报考","0996-2168118","主要从事工会日常统筹及维护工作"]
[32,"20250232","库尔勒市梨香街道办事处","库尔勒市梨香街道办事处社会事务服务中心（退役军人服务站）","综合协调办","业务员","专业技术岗位",1,"35周岁及以下","研究生及以上","硕士学位及以上","研究生-(03)法学","研究生-(0301)法学,研究生-(0302)政治学,研究生-(0303)社会学,研究生-(0304)民族学,研究生-(0305)马克思主义理论",null,null,"0996-2168118","主要从事街道日常统筹协调及社会事务工作"]
[33,"20250233","库尔勒市梨香街道办事处","库尔勒市梨香街道办事处经济发展中心","业务室","业务员","专业技术岗位",1,"35周岁及以下","研究生及以上","硕士学位及以上","研究生-(02)经济学,研究生-(12)管理学","研究生-(0201)理论经济学,研究生-(0202)应用经济学,研究生-(1202)工商管理学,研究生-(1205)信息资源管理,研究生-(1253)会计",null,"限少数民族报考","0996-2168118","主要从事街道企业服务、招商协调及相关项目推进与管理工作"]
[34,"20250234","库尔勒市朝阳街道办事处","库尔勒市朝阳街道办事处经济发展中心","业务室","业务员","专业技术岗位",1,"35周岁及以下","研究生及以上","硕士学位及以上","研究生-(02)经济学,研究生-(03)法学,研究生-(12)管理学","研究生-(0201)理论经济学,研究生-(0202)应用经济学,研究生-(0303)社会学,研究生-(1202)工商管理学,研究生-(1253)会计",null,null,"0996-2168118","主要从事经济发展工作"]
[35,"20250235","库尔勒市永安街道办事处","库尔勒市永安街道办事处经济发展中心","业务室","业务员","专业技术岗位",1,"35周岁及以下","研究生及以上","硕士学位及以上","研究生-(02)经济学,研究生-(05)文学,研究生-(12)管理学","研究生-(0201)理论经济学,研究生-(0202)应用经济学,研究生-(0501)中国语言文学,研究生-(1202)工商管理学,研究生-(1253)会计",null,null,"0996-2168118","主要从事经济发展相关工作"]
[36,"20250236","库尔勒市文华街道办事处","库尔勒市文华街道办事处综合行政执法队","业务室","业务员","专业技术岗位",1,"35周岁及以下","研究生及以上","硕士学位及以上","研究生-(02)经济学,研究生-(03)法学,研究生-(07)理学","研究生-(0202)应用经济学,研究生-(0251)金融,研究生-(0301)法学,研究生-(0302)政治学,研究生-(0303)社会学,研究生-(0305)马克思主义理论,研究生-(0714)统计学",null,"限少数民族报考","0996-2168118","主要从事公共服务和民生服务工作"]
[37,"20250237","库尔勒市普惠乡人民政府","库尔勒市普惠乡村镇建设发展中心","业务室","业务员","专业技术岗位",1,"35周岁及以下","研究生及以上","硕士学位及以上","研究生-(03)法学,研究生-(08)工学","研究生-(0303)社会学,研究生-(0813)建筑学,研究生-(0816)测绘科学与技术,研究生-(0828)农业工程,研究生-(0833)城乡规划学",null,null,"0996-2168118","主要从事本乡村镇建设、国土空间规划等相关工作"]
[38,"20250238","库尔勒市兰干乡人民政府","库尔勒市兰干乡综治和网格化服务中心","业务室","业务员","专业技术岗位",1,"35周岁及以下","研究生及以上","硕士学位及以上","研究生-(03)法学,研究生-(08)工学,研究生-(12)管理学","研究生-(0301)法学,研究生-(0302)政治学,研究生-(0303)社会学,研究生-(0814)土木工程,研究生-(0833)城乡规划学,研究生-(0853)城乡规划,研究生-(0859)土木水利,研究生-(1202)工商管理学,研究生-(1253)会计",null,null,"0996-2168118","主要从事综合治理、乡镇规划及维护乡镇稳定工作"]
[39,"20250239","库尔勒市上户镇人民政府","库尔勒市上户镇综合行政执法队","综合业务科室","业务员","专业技术岗位",1,"35周岁及以下","研究生及以上","硕士学位及以上","研究生-(09)农学,研究生-(12)管理学","研究生-(0901)作物学,研究生-(0903)农业资源与环境,研究生-(0904)植物保护,研究生-(0905)畜牧学,研究生-(0907)林学,研究生-(0951)农业,研究生-(0954)林业,研究生-(1202)工商管理学,研究生-(1203)农林经济管理,研究生-(1205)信息资源管理,研究生-(1251)工商管理",null,null,"0996-2168118","主要从事农业、畜牧、林业、植物保护及办公室综合业务相关工作"]
[40,"20250240","库尔勒市渠犁镇人民政府","库尔勒市渠犁镇人民政府所属事业单位","业务室","业务员","专业技术岗位",1,"35周岁及以下","研究生及以上","硕士学位及以上","研究生-(05)文学,研究生-(12)管理学","研究生-(0501)中国语言文学,研究生-(0503)新闻传播学,研究生-(0552)新闻与传播,研究生-(1204)公共管理学,研究生-(1252)公共管理",null,"限少数民族报考","0996-2168118","主要从事材料撰写、宣传及综合治理工作"]
[41,"20250241","库尔勒市渠犁镇人民政府","库尔勒市渠犁镇人民政府所属事业单位","业务室","业务员","专业技术岗位",1,"35周岁及以下","研究生及以上","硕士学位及以上","研究生-(05)文学,研究生-(12)管理学","研究生-(0501)中国语言文学,研究生-(0503)新闻传播学,研究生-(0552)新闻与传播,研究生-(1204)公共管理学,研究生-(1252)公共管理",null,null,"0996-2168118","主要从事材料撰写、宣传及综合治理工作"]
[{"$nulls":7},{"$f":"SUM(H5:H45)","v":44}]

{"sheet":"焉耆县","index":2,"n_rows":18,"n_cols":18,"rows_kept":18,"merged":[[0,0,0,17],[1,0,1,17],[2,0,3,0],[2,1,3,1],[2,2,3,2],[2,3,3,3],[2,4,3,4],[2,5,3,5],[2,6,3,6],[2,7,3,7],[2,8,2,14],[2,15,3,15],[2,16,3,16],[2,17,3,17]]}
["新疆巴州事业单位2025年下半年引进硕士研究生等优秀专业人才岗位表（焉耆县）"]
["引才优惠政策：\n一、生活补贴方面。高层次人才与本地（焉耆户籍）人员结婚登记给予补贴5千元；男女双方（一方为焉耆户籍）均为引进高层次人才给予补贴1万元；成家补贴仅可享受1次，由县人才领导小组办公室会议审议发放。高层次人才试用期考核合格后签订聘用合同后，按照硕士研究生给予一次性安置补贴1万元，博士研究生给予一次性安置补贴2万元。\n二、人才公寓方面。高层次人才入职后可享受人才公寓一套，并配备生活设施和用品，享有使用权，无权进行交易、出租、抵押；房租费用由县财政承担；人才公寓水电网、物业费用由个人承担；人才公寓使用期限为5年，如有特殊情况，经人才工作领导小组办公室会议审议是否继续享有使用权。\n三、购房方面。高层次人才在县域内购买新建商品房的，按照总房价的一定比例享受一次性“购房优惠”。高层次人才仅限购买新建商品房使用1次，不可重复使用；2名高层次人才共同购买1套商品房，仅享受一次“购房补贴优惠”。\n四、家属子女户籍、就业、就学方面。高层次人才配偶、子女可随迁落户；配偶为机关事业单位工作人员，可按干部调动规定申请优先安置；配偶为职工和未就业人员，根据专业特长优先推荐工作；子女在学龄前教育和义务教育阶段入园入学，可在县域内自主择校。\n五、人才培养方面（科研经费奖励方面）。用人单位采取结对子的办法，为高层次人才选配1名科级领导和1名业务骨干作为直接和间接培养联系人，根据高层次人才个人特点、专业特长，因材施教，培养其快速成长。具体参照《焉耆县推行年轻干部成长帮带机制实施方案》执行，并按要求建立焉耆县高层次人才成长档案。"]
["序号","岗位代码","主管单位","用人单位","招聘科室","岗位名称","岗位类别","招聘人数","岗位条件",{"$nulls":6},"政策咨询电话","岗位描述","备注"]
[{"$nulls":8},"年龄","学历","学位","专业大类及代码","专业类及代码","研究生:三级专业目录","岗位其他要求"]
[1,"20250301","焉耆工业园区管理委员会","焉耆工业园区经济发展招商服务局","业务室","业务员","专业技术岗位",1,"35周岁及以下","研究生及以上","硕士学位及以上","研究生-(02)经济学","研究生-(0202)应用经济学,研究生-(0252)应用统计",null,"限少数民族报考","0996-6022503","主要从事服务园区经济发展，项目信息管理，招商活动策划等工作"]
[2,"20250302","焉耆工业园区管理委员会","焉耆工业园区规划建设环保局","业务室","业务员","专业技术岗位",1,"35周岁及以下","研究生及以上","硕士学位及以上","研究生-(08)工学","研究生-(0830)环境科学与工程,研究生-(0833)城乡规划学",null,null,"0996-6022503","主要从事园区规划布局，项目选址，项目落地指导等工作"]
[3,"20250303","焉耆县委员会党校","焉耆县委员会党校","教学教研室","教师","专业技术岗位",2,"35周岁及以下","研究生及以上","硕士学位及以上","研究生-(01)哲学,研究生-(02)经济学,研究生-(03)法学,研究生-(04)教育学,研究生-(05)文学,研究生-(06)历史学","研究生-(0101)哲学,研究生-(0201)理论经济学,研究生-(0301)法学,研究生-(0302)政治学,研究生-(0304)民族学,研究生-(0305)马克思主义理论,研究生-(0501)中国语言文学,研究生-(0602)中国史,研究生-(0603)世界史",null,null,"0996-6022503","主要从事党校相关教学教研等工作。"]
[4,"20250304","焉耆县教育和科学技术局","焉耆县教研室","教研室","教师","专业技术岗位",1,"35周岁及以下","研究生及以上","硕士学位及以上","研究生-(04)教育学,研究生-(05)文学","研究生-(0401)教育学,研究生-(0501)中国语言文学",null,"需取得初中及以上教师资格证","0996-6022503","主要从事教育教学管理服务等工作"]
[5,"20250305","焉耆县财政局","焉耆县乡镇财政管理局","综合业务股","财务人员","专业技术岗位",1,"35周岁及以下","研究生及以上","硕士学位及以上","研究生-(02)经济学,研究生-(08)工学,研究生-(12)管理学","研究生-(0202)应用经济学,研究生-(0251)金融,研究生-(0252)应用统计,研究生-(0256)资产评估,研究生-(0257)审计,研究生-(0258)数字经济,研究生-(0810)信息与通信工程,研究生-(0812)计算机科学与技术,研究生-(1253)会计",null,null,"0996-6022503","主要从事财政管理相关工作。"]
[6,"20250306","焉耆县农业农村局","焉耆县农业技术推广中心","业务室","业务员","专业技术岗位",1,"35周岁及以下","研究生及以上","硕士学位及以上","研究生-(09)农学",null,null,"限少数民族报考","0996-6022503","主要从事农业技术推广工作"]
[7,"20250307","焉耆县文化体育广播电视和旅游局（文物局）","焉耆县文工团","业务室","舞蹈编导、舞蹈表演","专业技术岗位",1,"35周岁及以下","研究生及以上","硕士学位及以上","研究生-(13)艺术学","研究生-(1301)艺术学,研究生-(1352)音乐,研究生-(1353)舞蹈",null,"限少数民族报考","0996-6022503","主要从事艺术类相关工作"]
[8,"20250308","焉耆县文化体育广播电视和旅游局（文物局）","焉耆县图书馆","业务室","工作人员","专业技术岗位",1,"35周岁及以下","研究生及以上","硕士学位及以上","研究生-(12)管理学","研究生-(1255)图书情报",null,null,"0996-6022503","主要从事文献采编、借阅咨询、阅读推广及馆藏维护工作"]
[9,"20250309","焉耆县七个星镇人民政府","焉耆县七个星镇村镇建设发展中心","业务室","业务员","专业技术岗位",1,"35周岁及以下","研究生及以上","硕士学位及以上","研究生-(07)理学,研究生-(08)工学,研究生-(12)管理学","研究生-(0714)统计学,研究生-(0813)建筑学,研究生-(0814)土木工程,研究生-(0833)城乡规划学,研究生-(1203)农林经济管理,研究生-(1253)会计,研究生-(1257)审计",null,"限少数民族报考","0996-6022503","主要从事日常财务核算，编制各类财务报表等财会工作"]
[10,"20250310","焉耆县五号渠乡人民政府","焉耆县五号渠乡农业发展服务中心","业务室","业务员","专业技术岗位",2,"35周岁及以下","研究生及以上","硕士学位及以上","研究生-(09)农学","研究生-(0905)畜牧学,研究生-(0906)兽医学,研究生-(0907)林学,研究生-(0951)农业,研究生-(0954)林业",null,null,"0996-6022503","主要从事农业发展服务等工作"]
[11,"20250311","焉耆县五号渠乡人民政府","焉耆县五号渠乡农业发展服务中心","业务室","业务员","专业技术岗位",1,"35周岁及以下","研究生及以上","硕士学位及以上","研究生-(09)农学","研究生-(0905)畜牧学,研究生-(0906)兽医学,研究生-(0907)林学,研究生-(0951)农业,研究生-(0954)林业",null,"限少数民族报考","0996-6022503","主要从事农业发展服务等工作"]
[12,"20250312","焉耆县包尔海乡人民政府","焉耆县包尔海乡农业发展服务中心","业务室","业务员","专业技术岗位",1,"35周岁及以下","研究生及以上","硕士学位及以上","研究生-(09)农学",null,null,"限少数民族报考","0996-6022503","主要从事农业发展服务等工作"]
[13,"20250313","焉耆县北大渠乡人民政府","焉耆县北大渠乡农业发展服务中心","业务室","业务员","专业技术岗位",1,"35周岁及以下","研究生及以上","硕士学位及以上","研究生-(09)农学",{"$nulls":3},"0996-6022503","主要从事农业推广等工作。"]
[{"$nulls":7},{"$f":"SUM(H5:H17)","v":15}]

{"sheet":"和静县","index":3,"n_rows":11,"n_cols":18,"rows_kept":11,"merged":[[0,0,0,17],[1,0,1,17],[2,0,3,0],[2,1,3,1],[2,2,3,2],[2,3,3,3],[2,4,3,4],[2,5,3,5],[2,6,3,6],[2,7,3,7],[2,8,2,14],[2,15,3,15],[2,16,3,16],[2,17,3,17]]}
["新疆巴州事业单位2025年下半年引进硕士研究生等优秀专业人才岗位表（和静县）"]
["引才优惠政策：\n一、生活补贴方面。引进人才到岗后，按照博士或正高级职称专业技术人才50000元、“双一流”建设高校硕士研究生或副高级职称人才30000元、其余高校硕士研究生20000元的标准，一次性发放安家费。服务期内，按照博士或正高级职称人才每年10000元、“双一流”建设高校硕士研究生或副高级职称人才每年8000元、其余高校硕士研究生每年6000元的标准，发放生活补助。\n二、人才公寓方面。服务期内，为县城内无房人员提供人才公寓免租入住；引进人才获得自治区级及以上表彰、研究项目入选自治区级及以上重大项目或有其他重要贡献，服务期满后提供人才公寓长期居住。\n三、购房方面。服务期满后在和静县购房的，按照博士或正高级职称人才120000元、“双一流”建设高校硕士研究生或副高级职称人才100000元、其余高校硕士研究生80000元的标准，一次性发放购房补贴。\n四、家属子女户籍、就业、就学方面。引进人才配偶、子女可随迁落户。配偶为党政机关、事业单位正式在编干部，可按干部调动相关程序和规定申请优先安置；配偶为企业职工和未就业人员，根据所学专业和特长优先推荐工作。子女在学龄前教育和义务教育阶段入园入学，可在县域内自主择校。\n五、人才培养方面（科研经费奖励方面）。引进人才从事的“产、学、研”科技成果转化项目经地州级及以上相关部门论证后，按照“一事一议”原则，给予最高200000元的项目启动资金；引进人才携带或介绍技术、项目、专利在本县投产或研制开发新产品、推广应用新成果产生经济效益，按照“一事一议”原则，给予最高200000元的科研成果奖金。\n六、其他方面。\n1.医疗保障。每年为引进人才提供县域重点医院免费体检1次，并建立健康管理档案。对引进人才及其配偶、子女开通县域内专家预约诊疗等便捷服务。\n2.休假探亲。服务期内，引进人才除法定节假日和年休假外，疆内的额外给予5天假期、疆外的额外给予10天假期，有寒暑假或年度内病假、事假等合计超过10天的不再额外给予。服务期内，可按照本人乘坐公共交通工具规定的标准，每年不超过4次据实报销探亲往返交通费，配偶及其未成年子女（没有配偶的系其父母及未成年子女）在服务期内探望的，参照上述标准据实报销1次往返交通费，次数计入本人报销规定次数。\n3.成长关爱。将引进人才纳入干部教育培训总体规划，优先选派参加技术技能培训，帮助提升综合业务水平。将引进人才纳入县级领导联系服务范围，建立人才档案，定期掌握人才思想、工作和生活情况，帮助协调解决实际困难。"]
["序号","岗位代码","主管单位","用人单位","招聘科室","岗位名称","岗位类别","招聘人数","岗位条件",{"$nulls":6},"政策咨询电话","岗位描述","备注"]
[{"$nulls":8},"年龄","学历","学位","专业大类及代码","专业类及代码","研究生:三级专业目录","岗位其他要求"]
[1,"20250401","中共和静县委员会宣传部","和静县社会科学界联合会","业务科","工作人员","专业技术岗位",1,"35周岁及以下","研究生及以上","硕士学位及以上","研究生-(01)哲学,研究生-(03)法学,研究生-(05)文学,研究生-(08)工学","研究生-(0101)哲学,研究生-(0302)政治学,研究生-(0501)中国语言文学,研究生-(0503)新闻传播学,研究生-(0812)计算机科学与技术",null,"限少数民族报考","0996-5010516","主要从事理论学科工作"]
[2,"20250402","和静县农业农村局","和静县畜牧兽医站","业务科","工作人员","专业技术岗位",1,"35周岁及以下","研究生及以上","硕士学位及以上","研究生-(09)农学","研究生-(0905)畜牧学,研究生-(0906)兽医学,研究生-(0952)兽医","研究生-(090501)动物遗传育种与繁殖,研究生-(090502)动物营养与饲料科学,研究生-(090503)草业科学,研究生-(090601)基础兽医学,研究生-(090602)预防兽医学,研究生-(090603)临床兽医学","限少数民族报考","0996-5010516","主要从事畜牧兽医、牛羊品种改良、重大动物防疫工作"]
[3,"20250403","和静县住房和城乡建设局","和静县建设工程消防设计审查验收服务中心","业务科","工作人员","专业技术岗位",1,"35周岁及以下","研究生及以上","硕士学位及以上","研究生-(08)工学","研究生-(0813)建筑学,研究生-(0814)土木工程",null,null,"0996-5010516","主要从事建设工程领域房屋市政工程质量及安全的监督管理和技术审查工作，技术文件审核与执\n行监督，质量问题的处理及隐患的排查，以及竣工质量监督等相关工作。"]
[4,"20250404","和静县额勒再特乌鲁乡人民政府","和静县额勒再特乌鲁乡综合执法办公室","业务科","工作人员","专业技术岗位",1,"30周岁及以下","研究生及以上","硕士学位及以上","研究生-(09)农学","研究生-(0904)植物保护,研究生-(0905)畜牧学,研究生-(0906)兽医学,研究生-(0909)草学,研究生-(0952)兽医",null,"限少数民族报考","0996-5010516","主要从事草原畜牧工作"]
[5,"20250405","和静县哈尔莫敦镇人民政府","和静县哈尔莫敦镇村镇建设发展中心","业务科","工作人员","专业技术岗位",1,"35周岁及以下","研究生及以上","硕士学位及以上","研究生-(08)工学,研究生-(09)农学,研究生-(12)管理学","研究生-(0813)建筑学,研究生-(0814)土木工程,研究生-(0815)水利工程,研究生-(0830)环境科学与工程,研究生-(0833)城乡规划学,研究生-(0851)建筑学,研究生-(0853)城乡规划,研究生-(0905)畜牧学,研究生-(0906)兽医学,研究生-(0907)林学,研究生-(0951)农业,研究生-(0952)兽医,研究生-(1201)管理科学与工程,研究生-(1202)工商管理学,研究生-(1203)农林经济管理,研究生-(1251)工商管理,研究生-(1253)会计,研究生-(1254)旅游管理",null,"限少数民族报考","0996-5010516","主要从事村镇规划管理等服务工作"]
[6,"20250406","和静县阿拉沟乡人民政府","和静县阿拉沟乡村镇建设发展中心","业务室","工作人员","专业技术岗位",1,"35周岁及以下","研究生及以上","硕士学位及以上","研究生-(08)工学,研究生-(09)农学,研究生-(12)管理学","研究生-(0813)建筑学,研究生-(0814)土木工程,研究生-(0815)水利工程,研究生-(0830)环境科学与工程,研究生-(0833)城乡规划学,研究生-(0851)建筑学,研究生-(0853)城乡规划,研究生-(0861)交通运输,研究生-(0905)畜牧学,研究生-(0906)兽医学,研究生-(0907)林学,研究生-(0951)农业,研究生-(0952)兽医,研究生-(1201)管理科学与工程,研究生-(1202)工商管理学,研究生-(1203)农林经济管理,研究生-(1251)工商管理,研究生-(1253)会计,研究生-(1254)旅游管理",null,"限少数民族报考","0996-5010516","主要从事村镇规划与管理等服务工作"]
[{"$nulls":7},{"$f":"SUM(H5:H10)","v":6}]

{"sheet":"和硕县","index":4,"n_rows":19,"n_cols":18,"rows_kept":19,"merged":[[0,0,0,17],[1,0,1,17],[2,0,3,0],[2,1,3,1],[2,2,3,2],[2,3,3,3],[2,4,3,4],[2,5,3,5],[2,6,3,6],[2,7,3,7],[2,8,2,14],[2,15,3,15],[2,16,3,16],[2,17,3,17]]}
["新疆巴州事业单位2025年下半年引进硕士研究生等优秀专业人才岗位表（和硕县）"]
["引才优惠政策：\n一、生活补贴方面。引进的硕士研究生等优秀人才，试用期内不发放补贴，试用期满考核合格给予定额生活补贴，并一次性补发试用期内补贴，转正后每月生活补贴由用人单位随工资同步发放。\n1.普通高校博士研究生，经考核审定，每月生活补贴0.5万元，发放3年；\n2.普通高校硕士研究生，经考核审定，每月生活补贴0.2万元，发放3年；\n二、人才公寓方面。引进人才非本地户籍在和硕县无固定住所的，可免费提供公租房供其入住，享有居住权，无权进行交易、出租、抵押，个人应承担水电气暖、物业费等相关费用，最长居住时间不得超过5年。\n三、购房方面。非本地户籍在县域内首次购买自住商品房的，5年期满后可分类给予购房补贴，具体补贴标准为：\n1.普通高校博士研究生，经考核审定，购买补贴按照100平方米，每平方补贴300元（未达到100平方米按照实际面积补贴），凭购房合同享受补贴，所购房屋5年内不得交易；\n2.普通高校硕士研究生，经考核审定，购买补贴按照80平方米，每平方补贴200元（未达到80 平方米按照实际面积补贴），凭购房合同享受补贴，所购房屋5年内不得交易。若夫妻双方同属引进人才，且都属于享受首次购房补贴的对象，按一方全额、另一方半额补贴。\n四、其他方面。\n1.引进人才试用期间享受本单位在编同等人员的工资待遇。\n2.在某一专业领域成果显著、知名度高、社会和业内认可，为和硕经济发展和社会进步做出突出贡献的专业技术人才，试用期满考核合格，经单位党组（党委）会议研究可以优先向县人力资源和社会保障局推荐相关专业技术职务任职资格，同时用人单位有空缺岗位优先聘用引进人才，使引进人才及时享受相关待遇。\n3.原担任行政职务的，给予安排相应的职级，享受原职级规定的待遇。"]
["序号","岗位代码","主管单位","用人单位","招聘科室","岗位名称","岗位类别","招聘人数","岗位条件",{"$nulls":6},"政策咨询电话","岗位描述","备注"]
[{"$nulls":8},"年龄","学历","学位","专业大类及代码","专业类及代码","研究生:三级专业目录","岗位其他要求"]
[1,"20250501","中共和硕县委员会党校","中共和硕县委员会党校","业务室","业务员","专业技术岗位",1,"35周岁及以下","研究生及以上","硕士学位及以上","研究生-(01)哲学,研究生-(03)法学,研究生-(04)教育学,研究生-(05)文学,研究生-(06)历史学","研究生-(0101)哲学,研究生-(0301)法学,研究生-(0302)政治学,研究生-(0304)民族学,研究生-(0305)马克思主义理论,研究生-(0401)教育学,研究生-(0501)中国语言文学,研究生-(0602)中国史",null,null,"0996-5628557","主要从事党校教学、科研工作"]
[2,"20250502","中共和硕县委员会办公室","和硕县档案馆","业务室","档案员","专业技术岗位",1,"35周岁及以下","研究生及以上","硕士学位及以上","研究生-(08)工学,研究生-(12)管理学","研究生-(0812)计算机科学与技术,研究生-(1205)信息资源管理",null,null,"0996-5628557","主要从事档案业务等工作"]
[3,"20250503","中共和硕县委员会统一战线工作部","和硕县社会主义学院","综合业务室","讲师","专业技术岗位",1,"35周岁及以下","研究生及以上","硕士学位及以上","研究生-(05)文学","研究生-(0501)中国语言文学,研究生-(0503)新闻传播学,研究生-(0552)新闻与传播",null,null,"0996-5628557","主要从事统战民族宗教业务工作及政策理论的研究。"]
[4,"20250504","和硕县商务和工业信息化局","和硕县葡萄产业技术服务中心","业务室","工作人员","专业技术岗位",1,"35周岁及以下","研究生及以上","硕士学位及以上","研究生-(09)农学,研究生-(12)管理学","研究生-(0907)林学,研究生-(0954)林业,研究生-(1203)农林经济管理",null,"限少数民族报考","0996-5628557","主要从事指导林果业及其产品生产经营的质量管理、数据统计、信息收集、培育引进新品种等工作"]
[5,"20250505","和硕县财政局","和硕县财政国库集中收付中心","业务室","工作人员","专业技术岗位",1,"35周岁及以下","研究生及以上","硕士学位及以上","研究生-(02)经济学,研究生-(12)管理学","研究生-(0202)应用经济学,研究生-(1202)工商管理学,研究生-(1253)会计","研究生-(020203)财政学,研究生-(020204)金融学,研究生-(120201)会计学",null,"0996-5628557","主要从事财政及财务管理工作"]
[6,"20250506","和硕县住房和城乡建设局","和硕县园林服务中心","业务室","工作人员","专业技术岗位",1,"35周岁及以下","研究生及以上","硕士学位及以上","研究生-(08)工学","研究生-(0834)风景园林学,研究生-(0862)风景园林",null,null,"0996-5628557","主要从事管理园林绿化，美化县城环境等工作。"]
[7,"20250507","和硕县林业和草原局","和硕县林业科学技术推广中心","业务室","技术员","专业技术岗位",1,"35周岁及以下","研究生及以上","硕士学位及以上","研究生-(09)农学,研究生-(12)管理学","研究生-(0907)林学,研究生-(0954)林业,研究生-(1203)农林经济管理",null,null,"0996-5628557","主要从事林果技术、林业技术推广工作。"]
[8,"20250508","和硕县林业和草原局","和硕县胡杨荒漠植被管护站","业务室","技术员","专业技术岗位",1,"35周岁及以下","研究生及以上","硕士学位及以上","研究生-(09)农学,研究生-(12)管理学","研究生-(0907)林学,研究生-(0954)林业,研究生-(1203)农林经济管理",null,null,"0996-5628557","主要从事森林保护、抚育工作。"]
[9,"20250509","和硕县农业农村局","和硕县畜牧兽医工作站（动物疫病预防控制中心）","实验室","技术员","专业技术岗位",1,"35周岁及以下","研究生及以上","硕士学位及以上","研究生-(09)农学","研究生-(0905)畜牧学,研究生-(0906)兽医学,研究生-(0952)兽医",null,null,"0996-5628557","主要从事动物疫病监测，检测，生物安全防控等工作"]
[10,"20250510","和硕县农业农村局","和硕县农业技术推广中心（植物保护检疫站）","业务室","技术员","专业技术岗位",1,"35周岁及以下","研究生及以上","硕士学位及以上","研究生-(09)农学","研究生-(0903)农业资源与环境,研究生-(0904)植物保护,研究生-(0951)农业",null,null,"0996-5628557","主要从事土壤采集与评价管理等工作"]
[11,"20250511","和硕县农业农村局","和硕县农产品质量安全检测中心","业务室","技术员","专业技术岗位",1,"35周岁及以下","研究生及以上","硕士学位及以上","研究生-(09)农学","研究生-(0901)作物学,研究生-(0904)植物保护,研究生-(0951)农业",null,null,"0996-5628557","主要从事农作物重大技术的引进、试验、示范与推广，开展田间管理关键环节服务指导，病虫害防治等相关工作"]
[12,"20250512","和硕县乌什塔拉回族民族乡人民政府","和硕县乌什塔拉乡农业发展服务中心","业务室","技术员","专业技术岗位",1,"35周岁及以下","研究生及以上","硕士学位及以上","研究生-(09)农学","研究生-(0902)园艺学,研究生-(0907)林学,研究生-(0951)农业",null,"限少数民族报考","0996-5628557","主要从事畜牧业、林业、农业等工作"]
[13,"20250513","和硕县塔哈其镇人民政府","和硕县塔哈其镇农业发展服务中心","业务室","技术员","专业技术岗位",1,"35周岁及以下","研究生及以上","硕士学位及以上","研究生-(09)农学","研究生-(0901)作物学,研究生-(0903)农业资源与环境,研究生-(0904)植物保护,研究生-(0905)畜牧学,研究生-(0907)林学,研究生-(0951)农业,研究生-(0954)林业",null,"限少数民族报考","0996-5628557","主要从事畜牧业、林业、农业等工作"]
[14,"20250514","和硕县曲惠镇人民政府","和硕县曲惠镇农业发展服务中心","业务室","技术员","专业技术岗位",1,"35周岁及以下","研究生及以上","硕士学位及以上","研究生-(09)农学","研究生-(0902)园艺学,研究生-(0903)农业资源与环境,研究生-(0905)畜牧学,研究生-(0906)兽医学,研究生-(0907)林学,研究生-(0951)农业,研究生-(0952)兽医,研究生-(0954)林业,研究生-(0971)环境科学与工程,研究生-(0972)食品科学与工程",null,"限少数民族报考","0996-5628557","主要从事农业、畜牧兽医、林业、水利、乡村振兴、农经等方面的服务和保障工作。"]
[{"$nulls":7},{"$f":"SUM(H5:H18)","v":14}]

{"sheet":"博湖县","index":5,"n_rows":8,"n_cols":18,"rows_kept":8,"merged":[[0,0,0,17],[1,0,1,17],[2,0,3,0],[2,1,3,1],[2,2,3,2],[2,3,3,3],[2,4,3,4],[2,5,3,5],[2,6,3,6],[2,7,3,7],[2,8,2,14],[2,15,3,15],[2,16,3,16],[2,17,3,17]]}
["新疆巴州事业单位2025年下半年引进硕士研究生等优秀专业人才岗位表（博湖县）"]
["引才优惠政策：\n一、人才公寓方面\n引进人才3年内公租房房租费由用人单位支付。\n二、购房方面\n在规定的五年服务期内，引进的高层次人才在本县购买首套商品房，凭购房合同可一次性享受购房补贴，享受购房补贴的商品房，购房之日起5年内不得交易。"]
["序号","岗位代码","主管单位","用人单位","招聘科室","岗位名称","岗位类别","招聘人数","岗位条件",{"$nulls":6},"政策咨询电话","岗位描述","备注"]
[{"$nulls":8},"年龄","学历","学位","专业大类及代码","专业类及代码","研究生:三级专业目录","岗位其他要求"]
[1,"20250601","博湖县人力资源和社会保障局","博湖县企业离退休人员社会化服务中心","业务室","工作人员","专业技术岗位",1,"35周岁及以下","研究生及以上","硕士学位及以上","研究生-(03)法学,研究生-(05)文学,研究生-(08)工学,研究生-(09)农学,研究生-(12)管理学","研究生-(0301)法学,研究生-(0303)社会学,研究生-(0351)法律,研究生-(0352)社会工作,研究生-(0501)中国语言文学,研究生-(0809)电子科学与技术,研究生-(0812)计算机科学与技术,研究生-(0901)作物学,研究生-(0902)园艺学,研究生-(0903)农业资源与环境,研究生-(0904)植物保护,研究生-(0905)畜牧学,研究生-(0906)兽医学,研究生-(0907)林学,研究生-(0908)水产,研究生-(0909)草学,研究生-(0910)水土保持与荒漠化防治学,研究生-(0951)农业,研究生-(0952)兽医,研究生-(0954)林业研究生，研究生--(1202)工商管理学,研究生-(1204)公共管理学",null,"限少数民族报考","0996-6621863","主要从事人力资源、社保等工作"]
[2,"20250602","博湖县人力资源和社会保障局","博湖县企业离退休人员社会化服务中心","业务室","工作人员","专业技术岗位",1,"35周岁及以下","研究生及以上","硕士学位及以上","研究生-(03)法学,研究生-(05)文学,研究生-(08)工学,研究生-(09)农学,研究生-(12)管理学","研究生-(0301)法学,研究生-(0303)社会学,研究生-(0351)法律,研究生-(0352)社会工作,研究生-(0501)中国语言文学,研究生-(0809)电子科学与技术,研究生-(0812)计算机科学与技术,研究生-(0901)作物学,研究生-(0902)园艺学，研究生-(0903)农业资源与环境,研究生-(0904)植物保护,研究生-(0905)畜牧学,研究生-(0906)兽医学,研究生-(0907)林学,研究生-(0908)水产,研究生-(0909)草学,研究生-(0910)水土保持与荒漠化防治学,研究生-(0951)农业,研究生-(0952)兽医,研究生-(0954)林业,研究生-(1202)工商管理学,研究生-(1204)公共管理学",null,null,"0996-6621863","主要从事人力资源、社保等工作"]
[3,"20250603","博湖县水利局","博湖县水利工程建设服务中心","业务室","工作人员","专业技术岗位",1,"35周岁及以下","研究生及以上","硕士学位及以上","研究生-(08)工学,研究生-(09)农学","研究生-(0813)建筑学,研究生-(0814)土木工程,研究生-(0815)水利工程,研究生-(0816)测绘科学与技术,研究生-(0828)农业工程,研究生-(0830)环境科学与工程,研究生-(0901)作物学,研究生-(0902)园艺学,研究生-(0903)农业资源与环境,研究生-(0904)植物保护,研究生-(0905)畜牧学,研究生-(0906)兽医学,研究生-(0907)林学,研究生-(0908)水产,研究生-(0909)草学,研究生-(0910)水土保持与荒漠化防治学,研究生-(0951)农业,研究生-(0952)兽医,研究生-(0953)风景园林,研究生-(0954)林业",null,"限少数民族报考","0996-6621863","主要从事水利工程建设等工作。"]
[{"$nulls":7},{"$f":"SUM(H5:H7)","v":3}]

{"sheet":"轮台县","index":6,"n_rows":22,"n_cols":18,"rows_kept":22,"merged":[[0,0,0,17],[1,0,1,17],[2,0,3,0],[2,1,3,1],[2,2,3,2],[2,3,3,3],[2,4,3,4],[2,5,3,5],[2,6,3,6],[2,7,3,7],[2,8,2,14],[2,15,3,15],[2,16,3,16],[2,17,3,17]]}
["新疆巴州事业单位2025年下半年引进硕士研究生等优秀专业人才岗位表（轮台县）"]
["引才优惠政策：\n一、生活补贴方面。\n引进人才可享受三年生活补贴，其中：试用期每月300元，共享受一年；试用期满转正后每月500元，连续享受两年。\n二、人才公寓方面。\n引进人才在轮台县工作期间，享受50-60㎡公租房一套（简装），夫妻二人均为引进人才的，享受70-85㎡公租房一套（简装），享有居住权，无权进行交易、出租、抵押。引进人才及其配偶在购房后一年内，仍可享受公租房居住权。\n三、家属子女户籍、就业、就学方面。\n子女就学。引进人才的子女随父母来轮台县就学的，同等条件下有限协调到就近范围内的优质学校。\n配偶就业。引进人才的配偶及家属根据就业意向，由县人事部门积极联系用人单位、企业，优先推荐就业。\n四、医疗保障。对引进人才及其家属开通轮台县就医“绿色通道”和重大疾病会诊制度，住院实施“先诊疗、后付费”服务，实施健康体检，建立健康管理档案，形成便利、高效、流畅的医疗救治通道，实现高效便捷就医和全生命周期的健康服务。"]
["序号","岗位代码","主管单位","用人单位","招聘科室","岗位名称","岗位类别","招聘人数","岗位条件",{"$nulls":6},"政策咨询电话","岗位描述","备注"]
[{"$nulls":8},"年龄","学历","学位","专业大类及代码","专业类及代码","研究生:三级专业目录","岗位其他要求"]
[1,"20250701","轮台县卫生健康委员会","轮台县人民医院","临床科室","医生","专业技术岗位",1,"40周岁及以下","研究生及以上","硕士学位及以上","研究生-(10)医学","研究生-(1002)临床医学",null,"限少数民族报考","0996-4682378","主要从事临床医疗工作"]
[2,"20250702","轮台县卫生健康委员会","轮台县维吾尔医医院","业务科室","医生","专业技术岗位",1,"35周岁及以下","研究生及以上","硕士学位及以上","研究生-(10)医学","研究生-(1005)中医学","研究生-(100506)中医内科学,研究生-(100508)中医骨伤科学,研究生-(100512)针灸推拿学","需取得执业医师资格和执业医师执业证书（执业范围：中医专业）或已通过医师执业考试执业范围未确定。","0996-4682378","主要从事中医内科、中医骨伤治疗康复、针灸推拿诊疗等工作"]
[3,"20250703","轮台县教育和科学技术局","轮台县第一中学","业务科室","教师","专业技术岗位",1,"30周岁及以下","研究生及以上","硕士学位及以上","研究生-(03)法学,研究生-(04)教育学,研究生-(07)理学,研究生-(08)工学","研究生-(0302)政治学,研究生-(0305)马克思主义理论,研究生-(0451)教育,研究生-(0701)数学,研究生-(0702)物理学,研究生-(0801)力学,研究生-(0802)机械工程,研究生-(0803)光学工程","研究生-(045102)学科教学 (思政),研究生-(045104)学科教学(数学) ,研究生-(045105)学科教学(物理)","1.需取得初中及以上与报考学科一致的教师资格证。\n2.需取得二级乙等及以上普通话等级证书。","0996-4682378","主要从事教学工作"]
[4,"20250704","轮台县教育和科学技术局","轮台县第二中学","业务科室","教师","专业技术岗位",1,"30周岁及以下","研究生及以上","硕士学位及以上","研究生-(04)教育学,研究生-(05)文学","研究生-(0451)教育,研究生-(0501)中国语言文学","研究生-(045103)学科教学 (语文),研究生-(050102)语言学及应用语言学,研究生-(050103)汉语言文字学,研究生-(050104)中国古典文献学,研究生-(050105)中国古代文学,研究生-(050106)中国现当代文学","1.需取得初中及以上语文教师资格证，\n2.需取得二级甲等及以上普通话等级证书。","0996-4682378","主要从事语文教学工作"]
[5,"20250705","轮台县教育和科学技术局","轮台县第二中学","业务科室","教师","专业技术岗位",1,"30周岁及以下","研究生及以上","硕士学位及以上","研究生-(04)教育学,研究生-(07)理学,研究生-(08)工学","研究生-(0451)教育,研究生-(0702)物理学,研究生-(0801)力学,研究生-(0802)机械工程,研究生-(0803)光学工程","研究生-(045105)学科教学(物理),研究生-(070201)理论物理,研究生-(070208)无线电物理","1.需取得初中及以上物理教师资格证，\n2.需取得二级乙等及以上普通话等级证书。","0996-4682378","主要从事教学工作"]
[6,"20250706","轮台县教育和科学技术局","轮台县第三中学","业务科室","教师","专业技术岗位",1,"30周岁及以下","研究生及以上","硕士学位及以上","研究生-(04)教育学,研究生-(07)理学","研究生-(0451)教育,研究生-(0702)物理学","研究生-(045105)学科教学(物理),研究生-(070201)理论物理,研究生-(070208)无线电物理","1.限少数民族报考；\n2.需取得高中物理教师资格证；\n3.需取得二级乙等及以上普通话等级证书。","0996-4682378","主要从事物理教学工作"]
[7,"20250707","轮台县教育和科学技术局","轮台县第三中学","业务科室","教师","专业技术岗位",1,"35周岁及以下","研究生及以上","硕士学位及以上","研究生-(04)教育学,研究生-(05)文学","研究生-(0451)教育,研究生-(0501)中国语言文学","研究生-(045103)学科教学 (语文),研究生-(050102)语言学及应用语言学,研究生-(050103)汉语言文字学,研究生-(050104)中国古典文献学,研究生-(050105)中国古代文学,研究生-(050106)中国现当代文学","1.需取得高中语文教师资格证；\n2.需取得二级甲等及以上普通话等级证书。","0996-4682378","主要从事语文教学工作"]
[8,"20250708","轮台县教育和科学技术局","轮台县第三中学","业务科室","教师","专业技术岗位",1,"35周岁及以下","研究生及以上","硕士学位及以上","研究生-(04)教育学,研究生-(07)理学","研究生-(0451)教育,研究生-(0701)数学","研究生-(045104)学科教学(数学) ,研究生-(070101)基础数学,研究生-(070102)计算数学,研究生-(070104)应用数学","1.需取得高中数学教师资格证；\n2.需取得二级乙等及以上普通话等级证书。","0996-4682378","主要从事数学教学工作"]
[9,"20250709","轮台县教育和科学技术局","轮台县职业技术学校","业务科室","教师","专业技术岗位",1,"30周岁及以下","研究生及以上","硕士学位及以上","研究生-(04)教育学,研究生-(08)工学","研究生-(0451)教育,研究生-(0812)计算机科学与技术","研究生-(045117)科学与技术教育","1.需取得中等职业学校教师资格。\n2.需取得二级乙等及以上普通话等级证书。","0996-4682378","主要从事计算机教学工作"]
[10,"20250710","轮台县教育和科学技术局","轮台县第三小学","业务科室","教师","专业技术岗位",1,"35周岁及以下","研究生及以上","硕士学位及以上","研究生-(04)教育学,研究生-(05)文学,研究生-(07)理学","研究生-(0451)教育,研究生-(0501)中国语言文学,研究生-(0701)数学","研究生-(045103)学科教学 (语文),研究生-(045104)学科教学(数学) ,研究生-(050102)语言学及应用语言学,研究生-(050103)汉语言文字学,研究生-(070101)基础数学,研究生-(070102)计算数学,研究生-(070104)应用数学","1.限少数民族报考；\n2.需取得小学及以上语文或数学教师资格证。\n3.需取得二级乙等及以上普通话等级证书（报考语文学科人员需取得二级甲等及以上普通话等级证书）。","0996-4682378","主要从事教学工作"]
[11,"20250711","轮台县水利局","轮台县水利工程建设管理站","业务科室","业务员","专业技术岗位",1,"35周岁及以下","研究生及以上","硕士学位及以上","研究生-(08)工学,研究生-(09)农学","研究生-(0815)水利工程,研究生-(0910)水土保持与荒漠化防治学",null,null,"0996-4682378","主要从事水利工程质量监督管理等工作"]
[12,"20250712","轮台县塔拉克乡人民政府","轮台县塔尔拉克乡农业发展服务中心","业务科室","业务员","专业技术岗位",1,"35周岁及以下","研究生及以上","硕士学位及以上","研究生-(09)农学","研究生-(0901)作物学,研究生-(0902)园艺学,研究生-(0903)农业资源与环境,研究生-(0904)植物保护,研究生-(0905)畜牧学,研究生-(0906)兽医学,研究生-(0907)林学,研究生-(0909)草学,研究生-(0951)农业",null,null,"0996-4682378","主要从事农业或涉及农业领域工作"]
[13,"20250713","轮台县草湖乡人民政府","轮台县草湖乡农业发展服务中心","业务科室","业务员","专业技术岗位",1,"35周岁及以下","研究生及以上","硕士学位及以上","研究生-(08)工学,研究生-(09)农学","研究生-(0815)水利工程,研究生-(0859)土木水利,研究生-(0910)水土保持与荒漠化防治学,研究生-(0951)农业",null,null,"0996-4682378","主要从事农业水资源管理、水土治理等相关工作"]
[14,"20250714","轮台县铁热克巴扎乡人民政府","轮台县铁热克巴扎乡农业发展服务中心","业务科室","业务员","专业技术岗位",1,"35周岁及以下","研究生及以上","硕士学位及以上","研究生-(02)经济学,研究生-(03)法学,研究生-(04)教育学,研究生-(08)工学,研究生-(09)农学","研究生-(0202)应用经济学,研究生-(0301)法学,研究生-(0402)心理学,研究生-(0828)农业工程,研究生-(0902)园艺学,研究生-(0903)农业资源与环境,研究生-(0951)农业",null,null,"0996-4682378","主要从事农业法律宣传心理疏导、经济规划、农技推广及农业指导等工作"]
[15,"20250715","轮台县阳霞镇人民政府","轮台县阳霞镇农业发展服务中心","业务科室","业务员","专业技术岗位",1,"35周岁及以下","研究生及以上","硕士学位及以上","研究生-(08)工学,研究生-(09)农学","研究生-(0808)电气工程,研究生-(0817)化学工程与技术,研究生-(0818)地质资源与地质工程,研究生-(0819)矿业工程,研究生-(0828)农业工程,研究生-(0829)林业工程,研究生-(0833)城乡规划学,研究生-(0853)城乡规划,研究生-(0903)农业资源与环境",null,null,"0996-4682378","主要从事农业生产管理、自动化、农业作物药物安全生产、各类自然资源管理等工作。"]
[16,"20250716","轮台县轮台镇人民政府","轮台县轮台镇农业发展服务中心","业务科室","业务员","专业技术岗位",1,"35周岁及以下","研究生及以上","硕士学位及以上","研究生-(08)工学,研究生-(09)农学","研究生-(0818)地质资源与地质工程,研究生-(0819)矿业工程,研究生-(0828)农业工程,研究生-(0829)林业工程,研究生-(0903)农业资源与环境",null,"限少数民族报考","0996-4682378","主要从事辖区农业土地及各类自然资源管理等工作。"]
[17,"20250717","轮台县阿克萨来乡人民政府","轮台县阿克萨来乡农业发展服务中心","业务科室","业务员","专业技术岗位",1,"35周岁及以下","研究生及以上","硕士学位及以上","研究生-(09)农学,研究生-(12)管理学","研究生-(0903)农业资源与环境,研究生-(0904)植物保护,研究生-(0905)畜牧学,研究生-(0906)兽医学,研究生-(0907)林学,研究生-(0909)草学,研究生-(0952)兽医,研究生-(1203)农林经济管理",null,"限少数民族报考","0996-4682378","主要从事农业发展、水土防治等相关工作。"]
[{"$nulls":7},{"$f":"SUM(H5:H21)","v":17}]

{"sheet":"尉犁县","index":7,"n_rows":22,"n_cols":18,"rows_kept":22,"merged":[[0,0,0,17],[1,0,1,17],[2,0,3,0],[2,1,3,1],[2,2,3,2],[2,3,3,3],[2,4,3,4],[2,5,3,5],[2,6,3,6],[2,7,3,7],[2,8,2,14],[2,15,3,15],[2,16,3,16],[2,17,3,17]]}
["新疆巴州事业单位2025年下半年引进硕士研究生等优秀专业人才岗位表（尉犁县）"]
["引才优惠政策：\n一、人才公寓方面。由用人单位为引进人才提供不低于50平米的过渡性公租房(人才公寓），房租费由财政承担，所在单位支付。居住时间一般不超过5年。\n二、购房方面。引进人才在尉犁县落户后，在县域内购买首套商品房的可享受购房补贴。博士研究生学历及正高级技术职称人员补贴100平方米、硕士研究生及副高级技术职称人员补贴面积为80平方米，补贴金额以当时购买价计算 ，购房补贴款按服务年限取整进行发放，每年发放20%，中途终止服务又返回岗位人员，服务期不累计计算。\n三、家属子女户籍、就业、就学方面。\n1.户籍办理：引进人才及配偶、父母和子女要求将户口迁入尉犁县的，开设绿色通道，简化程序，即报即批。\n2.配偶就业：引进人才配偶为机关事业单位在职在编人员，需随迁至本县工作的，结合岗位名额空缺情况，由组织、人事部门按“对口安置”原则安置；有创业和个体经商需求的，按照就业创业政策，协调市监、税务等部门优先办理证照；有资金需求符合相关贷款条件的，给予一定的小额担保贷款支持；配偶为未就业人员且有意愿在尉犁县工作的，提供就业指导、技能培训，并优先推荐就业岗位。\n3.子女入学。引进人才子女随父母来尉犁县就学的，符合转学规定的，可结合本人意愿自行选择县域内公办学校就读，不受学区限制。\n四、其他方面。\n1.医疗保障：对引进人才及其家属开通就医“绿色通道”，享受每年1次全面健康体检；\n2.探亲休假：引进人才在执行《国务院关于职工探亲假待遇规定》相关规定的基础上，每次探亲增加10天假期；每年可享受1次探亲交通补贴（以飞机经济舱往返费用为标准。）\n3.文化旅游。引进人才及家属在尉犁县域内旅游，凭尉犁县引进人才认定表（服务卡）在A级旅游景区内可享受免除门票政策。\n4.新婚关怀：引进人才在尉犁县落户结婚的，对新婚夫妇给予一次性安家补助5000元。"]
["序号","岗位代码","主管单位","用人单位","招聘科室","岗位名称","岗位类别","招聘人数","岗位条件",{"$nulls":6},"政策咨询电话","岗位描述","备注"]
[{"$nulls":8},"年龄","学历","学位","专业大类及代码","专业类及代码","研究生:三级专业目录","岗位其他要求"]
[1,"20250801","尉犁县委宣传部","尉犁县融媒体中心","业务室","工作人员","专业技术岗位",2,"35周岁及以下","研究生及以上","硕士学位及以上","研究生-(05)文学,研究生-(13)艺术学","研究生-(0503)新闻传播学,研究生-(0552)新闻与传播,研究生-(1354)戏剧与影视",null,null,"0996-4026981","主要从事外宣工作"]
[2,"20250802","尉犁县教育和科学技术局","尉犁县第一中学","业务室","教师","专业技术岗位",1,"35周岁及以下","研究生及以上","硕士学位及以上","研究生-(04)教育学,研究生-(07)理学","研究生-(0451)教育,研究生-(0702)物理学,研究生-(0703)化学","研究生-(045105)学科教学(物理),研究生-(045106)学科教学 (化学) ","1.具有相应专业的中等职业学校或高中教师资格证；2.需取得二级乙等及以上普通话等级证书","0996-4026981","主要从事高中教学工作"]
[3,"20250803","尉犁县教育和科学技术局","尉犁县第一中学","业务室","教师","专业技术岗位",1,"35周岁及以下","研究生及以上","硕士学位及以上","研究生-(04)教育学,研究生-(07)理学","研究生-(0451)教育,研究生-(0705)地理学,研究生-(0710)生物学","研究生-(045107)学科教学(生物) ,研究生-(045110)学科教学(地理) ","1.具有相应专业的中等职业学校或高中教师资格证；2.需取得二级乙等及以上普通话等级证书","0996-4026981","主要从事高中教学工作"]
[4,"20250804","尉犁县公安局","尉犁县塔河流域社会治安综合治理大队","业务室","工作人员","专业技术岗位",1,"35周岁及以下","研究生及以上","硕士学位及以上","研究生-(10)医学","研究生-(1002)临床医学,研究生-(1012)法医学",null,null,"0996-4026981","主要从事协助法医开展工作"]
[5,"20250805","尉犁县公安局","尉犁县塔河流域社会治安综合治理大队","业务室","工作人员","专业技术岗位",1,"35周岁及以下","研究生及以上","硕士学位及以上","研究生-(08)工学","研究生-(0810)信息与通信工程,研究生-(0812)计算机科学与技术,研究生-(0835)软件工程,研究生-(0839)网络空间安全",null,"限少数民族报考","0996-4026981","主要从事网路安全工作"]
[6,"20250806","尉犁县发展和改革委员会","尉犁县临空经济发展服务中心","业务室","工作人员","专业技术岗位",1,"35周岁及以下","研究生及以上","硕士学位及以上","研究生-(08)工学","研究生-(0823)交通运输工程",null,null,"0996-4026981","主要从事临空经济区内交通管理及协调等工作"]
[7,"20250807","尉犁县发展和改革委员会","尉犁县临空经济发展服务中心","业务室","工作人员","专业技术岗位",1,"35周岁及以下","研究生及以上","硕士学位及以上","研究生-(08)工学","研究生-(0825)航空宇航科学与技术",null,null,"0996-4026981","主要从事航空航天规划及服务工作"]
[8,"20250808","尉犁县商务和工业信息化局","尉犁县油气服务中心","业务室","工作人员","专业技术岗位",1,"30周岁及以下","研究生及以上","硕士学位及以上","研究生-(02)经济学,研究生-(08)工学,研究生-(09)农学","研究生-(0202)应用经济学,研究生-(0812)计算机科学与技术,研究生-(0820)石油与天然气工程,研究生-(0854)电子信息",null,null,"0996-4026981","主要从事油气服务工作"]
[9,"20250809","尉犁县文化体育广播电视和旅游局","尉犁县丝绸之路长城文化博物馆","业务室","工作人员","专业技术岗位",2,"35周岁及以下","研究生及以上","硕士学位及以上","研究生-(06)历史学,研究生-(08)工学","研究生-(0601)考古学,研究生-(0651)文物与博物馆,研究生-(0812)计算机科学与技术",null,"限少数民族报考","0996-4026981","主要从事文物藏品的守护、文化知识的传播等工作。"]
[10,"20250810","尉犁县审计局","尉犁县固定资产审计中心","业务室","工作人员","专业技术岗位",1,"35周岁及以下","研究生及以上","硕士学位及以上","研究生-(02)经济学,研究生-(08)工学,研究生-(12)管理学","研究生-(0202)应用经济学,研究生-(0253)税务,研究生-(0812)计算机科学与技术,研究生-(0814)土木工程,研究生-(1253)会计,研究生-(1257)审计",null,null,"0996-4026981","主要从事审计工作"]
[11,"20250811","尉犁县统计局","尉犁县统计数据服务中心","业务室","工作人员","专业技术岗位",1,"35周岁及以下","研究生及以上","硕士学位及以上","研究生-(02)经济学,研究生-(05)文学,研究生-(07)理学,研究生-(08)工学,研究生-(12)管理学","研究生-(0252)应用统计,研究生-(0258)数字经济,研究生-(0501)中国语言文学,研究生-(0714)统计学,研究生-(0812)计算机科学与技术,研究生-(0835)软件工程,研究生-(0854)电子信息,研究生-(1253)会计,研究生-(1257)审计",null,null,"0996-4026981","主要从事数据统计工作"]
[12,"20250812","尉犁县尉犁镇人民政府","尉犁县尉犁镇公共文化服务中心","业务室","工作人员","专业技术岗位",1,"35周岁及以下","研究生及以上","硕士学位及以上","研究生-(03)法学,研究生-(05)文学","研究生-(0301)法学,研究生-(0501)中国语言文学,研究生-(0503)新闻传播学",null,null,"0996-4026981","主要从事村镇文化服务工作"]
[13,"20250813","尉犁县尉犁镇人民政府","尉犁县尉犁镇便民服务中心","业务室","工作人员","专业技术岗位",1,"35周岁及以下","研究生及以上","硕士学位及以上","研究生-(03)法学,研究生-(05)文学","研究生-(0301)法学,研究生-(0303)社会学,研究生-(0352)社会工作,研究生-(0501)中国语言文学",null,"限少数民族报考","0996-4026981","主要从事便民服务工作"]
[14,"20250814","尉犁县尉犁镇人民政府","尉犁县尉犁镇便民服务中心","业务室","工作人员","专业技术岗位",2,"35周岁及以下","研究生及以上","硕士学位及以上","研究生-(03)法学,研究生-(05)文学","研究生-(0301)法学,研究生-(0303)社会学,研究生-(0352)社会工作,研究生-(0501)中国语言文学",null,null,"0996-4026981","主要从事便民服务工作"]
[15,"20250815","尉犁县尉犁镇人民政府","尉犁县尉犁镇农业发展服务中心","业务室","工作人员","专业技术岗位",1,"35周岁及以下","研究生及以上","硕士学位及以上","研究生-(05)文学,研究生-(12)管理学","研究生-(0501)中国语言文学,研究生-(1202)工商管理学",null,"限少数民族报考","0996-4026981","主要从事乡镇农业发展工作"]
[16,"20250816","尉犁县兴平镇人民政府","尉犁县兴平镇农业发展服务中心","业务室","工作人员","专业技术岗位",1,"35周岁及以下","研究生及以上","硕士学位及以上","研究生-(09)农学,研究生-(12)管理学","研究生-(0901)作物学,研究生-(0902)园艺学,研究生-(0905)畜牧学,研究生-(0906)兽医学,研究生-(0951)农业,研究生-(1202)工商管理学,研究生-(1253)会计",null,"限少数民族报考","0996-4026981","主要从事乡镇农业发展工作"]
[17,"20250817","尉犁县兴平镇人民政府","尉犁县兴平镇村镇建设发展中心","业务室","工作人员","专业技术岗位",1,"35周岁及以下","研究生及以上","硕士学位及以上","研究生-(08)工学,研究生-(09)农学","研究生-(0828)农业工程,研究生-(0829)林业工程,研究生-(0833)城乡规划学,研究生-(0853)城乡规划,研究生-(0857)资源与环境,研究生-(0859)土木水利,研究生-(0903)农业资源与环境,研究生-(0951)农业",null,null,"0996-4026981","主要从事村镇建设规划工作"]
[{"$nulls":7},{"$f":"SUM(H5:H21)","v":20}]

{"sheet":"且末县","index":8,"n_rows":13,"n_cols":18,"rows_kept":13,"merged":[[0,0,0,17],[1,0,1,17],[2,0,3,0],[2,1,3,1],[2,2,3,2],[2,3,3,3],[2,4,3,4],[2,5,3,5],[2,6,3,6],[2,7,3,7],[2,8,2,14],[2,15,3,15],[2,16,3,16],[2,17,3,17]]}
["新疆巴州事业单位2025年下半年引进硕士研究生等优秀专业人才岗位表（且末县）"]
["引才优惠政策：\n一、人才公寓方面。引进人才在且末暂未购买房产的，提供全额公租房租金补贴，购房后停止享受公租房政策。\n二、购房方面。引进人才，试用期满正式入编后，在且末县购房的可享受以下购房安家政策：\n1.全日制普通高校博士研究生学历人员可享受购房安家补助30万元；\n2.全日制普通高校硕士研究生学历人员可享受购房安家补助10万元；\n3.购房安家补助优惠政策每个申请人限享受一次（配偶符合购房优惠政策条件的，也可申请享受此政策）。购房安家补助共分5年发放（每年发放补助额的20%）\n4.上述人才享受购房安家补助优惠政策购买的住房，5 年内不得上市交易。\n三、家属子女户籍、就业、就学方面。\n引进人才愿意落户且末的，简化落户审批条件，携带身份证、户口本、体检证明等，经核实确认户籍信息后，可通过绿色通道直接办理迁入落户手续。\n引进人才配偶有意愿在且末工作的，县人力资源和社会保障局提供就业指导、技能培训，并优先推荐就业岗位；配偶系在职在编干部，组织人事部门负责协调办理调动手续。\n引进人才随迁子女到我县学校就读，按照就近入学原则，由教育行政部门安排到居住地学区内公办学校就读。\n四、人才培养方面（科研经费奖励方面）\n引进的硕士研究生学历及以上人员，在本专业有1年以上工作经历且考核合格，可申请授予相应专业中级职称。"]
["序号","岗位代码","主管单位","用人单位","招聘科室","岗位名称","岗位类别","招聘人数","岗位条件",{"$nulls":6},"政策咨询电话","岗位描述","备注"]
[{"$nulls":8},"年龄","学历","学位","专业大类及代码","专业类及代码","研究生:三级专业目录","岗位其他要求"]
[1,"20250901","中共且末县委员会党校","中共且末县委员会党校","业务室","教师","专业技术岗位",2,"35周岁及以下","研究生及以上","硕士学位及以上","研究生-(01)哲学,研究生-(03)法学,研究生-(06)历史学","研究生-(0101)哲学,研究生-(0301)法学,研究生-(0302)政治学,研究生-(0305)马克思主义理论,研究生-(0602)中国史,研究生-(0603)世界史",null,null,"0996-7629384","主要从事干部教育培训工作"]
[2,"20250902","且末县发展和改革委员会","且末县项目综合服务中心","业务室","技术员","专业技术岗位",1,"35周岁及以下","研究生及以上","硕士学位及以上","研究生-(02)经济学,研究生-(08)工学","研究生-(0202)应用经济学,研究生-(0812)计算机科学与技术",null,null,"0996-7629384","主要从事国民经济、项目数据分析工作"]
[3,"20250903","且末县林业和草原局","且末县红枣科技服务中心","业务室","技术员","专业技术岗位",1,"35周岁及以下","研究生及以上","硕士学位及以上","研究生-(09)农学","研究生-(0901)作物学,研究生-(0902)园艺学,研究生-(0907)林学",null,"限少数民族报考","0996-7629384","主要从事林草资源管理工作"]
[4,"20250904","且末县审计局","且末县固定资产投资审计中心","业务室","技术员","专业技术岗位",1,"35周岁及以下","研究生及以上","硕士学位及以上","研究生-(02)经济学,研究生-(12)管理学","研究生-(0202)应用经济学,研究生-(1202)工商管理学,研究生-(1253)会计,研究生-(1257)审计",null,null,"0996-7629384","主要从事会计、审计工作"]
[5,"20250905","且末县财政局","且末县会计服务中心","业务室","技术员","专业技术岗位",1,"35周岁及以下","研究生及以上","硕士学位及以上","研究生-(02)经济学,研究生-(12)管理学","研究生-(0202)应用经济学,研究生-(1202)工商管理学,研究生-(1253)会计,研究生-(1257)审计",null,"限少数民族报考","0996-7629384","主要从事会计类工作\n"]
[6,"20250906","且末县财政局","且末县国库集中支付中心","业务室","技术员","专业技术岗位",1,"35周岁及以下","研究生及以上","硕士学位及以上","研究生-(02)经济学,研究生-(12)管理学","研究生-(0202)应用经济学,研究生-(1202)工商管理学,研究生-(1253)会计,研究生-(1257)审计",null,null,"0996-7629384","主要从事会计类工作"]
[7,"20250907","且末县水利局","且末县水利综合服务中心","业务室","技术员","专业技术岗位",1,"35周岁及以下","研究生及以上","硕士学位及以上","研究生-(07)理学,研究生-(08)工学,研究生-(09)农学","研究生-(0709)地质学,研究生-(0813)建筑学,研究生-(0814)土木工程,研究生-(0815)水利工程,研究生-(0828)农业工程,研究生-(0830)环境科学与工程,研究生-(0859)土木水利,研究生-(0903)农业资源与环境",null,null,"0996-7629384","主要从事水利、水资源保护相关工作"]
[8,"20250908","且末县文化体育广播电视和旅游局","且末县文博馆","业务室","技术员","专业技术岗位",1,"35周岁及以下","研究生及以上","硕士学位及以上","研究生-(03)法学,研究生-(06)历史学,研究生-(12)管理学","研究生-(0301)法学,研究生-(0602)中国史,研究生-(1202)工商管理学",null,"限少数民族报考","0996-7629384","主要从事图书档案管理、体育活动策划相关工作"]
[{"$nulls":7},{"$f":"SUM(H5:H12)","v":9}]

{"sheet":"若羌县","index":9,"n_rows":28,"n_cols":18,"rows_kept":28,"merged":[[0,0,0,17],[1,0,1,17],[2,0,3,0],[2,1,3,1],[2,2,3,2],[2,3,3,3],[2,4,3,4],[2,5,3,5],[2,6,3,6],[2,7,3,7],[2,8,2,14],[2,15,3,15],[2,16,3,16],[2,17,3,17]]}
["新疆巴州事业单位2025年下半年引进硕士研究生等优秀专业人才岗位表（若羌县）"]
["引才优惠政策：\n一、生活补贴方面：引进的国内外领军人才、自治区内领军人才、高级专业人才、高学历人才分别按照1万元/月、6000元/月、3000元/月（正高、博士研究生）、2000元/月（副高、硕士研究生）标准发放。\n二、人才公寓方面：提供60平米以上过渡性公租房。\n三、购房方面：引进的国内外领军人才、自治区内领军人才、高级专业人才、高学历人才分别给予120平方米、100平方米、90平方米（正高）、70平方米（副高）、100平方米（博士研究生）、80平方米（硕士研究生）安居补贴；转正定级后，分别按照40%、30%、30%三年发放完毕，所购房屋5年内不得交易。\n四、家属子女户籍、就业、就学方面：进人才配偶为机关事业单位在职在编人员的，可申请调入本县工作；配偶无业的，推荐就业，同等条件下优先保障。引进人员的子女入学享受我县15年免费义务教育。对引进人才及其随迁亲属需将户籍迁入本县的，无条件办理落户手续。\n五、其他方面：引进的县域外人才可凭票据报销本人首次来县工作产生的交通费用，报销额度控制在3000元以内。"]
["序号","岗位代码","主管单位","用人单位","招聘科室","岗位名称","岗位类别","招聘人数","岗位条件",{"$nulls":6},"政策咨询电话","岗位描述","备注"]
[{"$nulls":8},"年龄","学历","学位","专业大类及代码","专业类及代码","研究生:三级专业目录","岗位其他要求"]
[1,"20251001","中共若羌县委员会社会工作部","若羌县社会工作事务中心","业务科室","工作人员","专业技术岗位",1,"35周岁及以下","研究生及以上","硕士学位及以上","研究生-(03)法学,研究生-(05)文学,研究生-(12)管理学","研究生-(0303)社会学,研究生-(0352)社会工作,研究生-(0501)中国语言文学,研究生-(0503)新闻传播学,研究生-(1204)公共管理学",null,null,"0996-7105096","主要从事办公室文字写作、上传下达等相关工作"]
[2,"20251002","若羌县委党校","若羌县委党校","业务科室","工作人员","专业技术岗位",1,"30周岁及以下","研究生及以上","硕士学位及以上","研究生-(01)哲学,研究生-(04)教育学,研究生-(05)文学,研究生-(06)历史学","研究生-(0101)哲学,研究生-(0401)教育学,研究生-(0501)中国语言文学,研究生-(0602)中国史",null,null,"0996-7105096","主要从事党校相关教育教学工作"]
[3,"20251003","若羌县人民政府办公室","若羌县数据发展中心","业务科室","工作人员","专业技术岗位",2,"30周岁及以下","研究生及以上","硕士学位及以上","研究生-(03)法学,研究生-(05)文学,研究生-(08)工学,研究生-(12)管理学","研究生-(0303)社会学,研究生-(0501)中国语言文学,研究生-(0503)新闻传播学,研究生-(0812)计算机科学与技术,研究生-(0828)农业工程,研究生-(1203)农林经济管理,研究生-(1204)公共管理学",null,null,"0996-7105096","主要从事文秘工作"]
[4,"20251004","若羌县人民政府办公室","若羌县招商服务中心","业务科室","工作人员","专业技术岗位",1,"30周岁及以下","研究生及以上","硕士学位及以上","研究生-(03)法学,研究生-(05)文学,研究生-(08)工学,研究生-(12)管理学","研究生-(0303)社会学,研究生-(0501)中国语言文学,研究生-(0503)新闻传播学,研究生-(0812)计算机科学与技术,研究生-(0828)农业工程,研究生-(1203)农林经济管理,研究生-(1204)公共管理学",null,"限少数民族报考","0996-7105096","主要从事文秘工作"]
[5,"20251005","若羌县发展和改革委员会","若羌县能源发展中心","办公室","工作人员","专业技术岗位",1,"35周岁及以下","研究生及以上","硕士学位及以上","研究生-(02)经济学,研究生-(03)法学,研究生-(05)文学,研究生-(12)管理学","研究生-(0201)理论经济学,研究生-(0202)应用经济学,研究生-(0270)统计学,研究生-(0301)法学,研究生-(0305)马克思主义理论,研究生-(0501)中国语言文学,研究生-(1202)工商管理学,研究生-(1204)公共管理学,研究生-(1251)工商管理,研究生-(1252)公共管理,研究生-(1253)会计",null,null,"0996-7105096","主要从事起草中心的工作计划；参与中心重要文件、制度的修订和完善工作"]
[6,"20251006","若羌县人力资源和社会保障局","若羌县技工学校","教务科","教师","专业技术岗位",1,"35周岁及以下","研究生及以上","硕士学位及以上","研究生-(04)教育学","研究生-(0403)体育学",null,null,"0996-7105096","主要从事体育教育相关工作"]
[7,"20251007","若羌县人力资源和社会保障局","若羌县技工学校","教务科","教师","专业技术岗位",1,"35周岁及以下","研究生及以上","硕士学位及以上","研究生-(04)教育学","研究生-(0402)心理学",null,null,"0996-7105096","主要从事教育教学、心理辅导等工作"]
[8,"20251008","若羌县人力资源和社会保障局","若羌县劳动人事争议仲裁院","业务科室","工作人员","专业技术岗位",1,"35周岁及以下","研究生及以上","硕士学位及以上","研究生-(03)法学,研究生-(05)文学,研究生-(12)管理学","研究生-(0301)法学,研究生-(0501)中国语言文学,研究生-(1204)公共管理学",null,null,"0996-7105096","主要从事劳动人事争议仲裁院文字写作、案件经办处理等工作"]
[9,"20251009","若羌县国有资产监督管理委员会","若羌县国有资产运营保障中心","业务科室","工作人员","专业技术岗位",1,"35周岁及以下","研究生及以上","硕士学位及以上","研究生-(07)理学,研究生-(12)管理学","研究生-(0714)统计学,研究生-(1253)会计,研究生-(1257)审计",null,null,"0996-7105096","主要从事国有资产监管、产权管理、企业改革指导、财务监督等工作"]
[10,"20251010","若羌县国有资产监督管理委员会","若羌县国有资产运营保障中心","业务科室","工作人员","专业技术岗位",1,"35周岁及以下","研究生及以上","硕士学位及以上","研究生-(07)理学,研究生-(12)管理学","研究生-(0714)统计学,研究生-(1253)会计,研究生-(1257)审计",null,"限少数民族报考","0996-7105096","主要从事国有资产监管、产权管理、企业改革指导、财务监督等工作"]
[11,"20251011","若羌县林业和草原局","若羌县红枣科学技术推广中心","业务科室","工作人员","专业技术岗位",1,"35周岁及以下","研究生及以上","硕士学位及以上","研究生-(09)农学","研究生-(0902)园艺学,研究生-(0904)植物保护,研究生-(0907)林学",null,null,"0996-7105096","主要从事林业（红枣）技术研究、技术服务、技术普及推广等工作"]
[12,"20251012","若羌县文化体育广播电视和旅游局","若羌县文化市场综合执法队","业务科室","工作人员","专业技术岗位",1,"35周岁及以下","研究生及以上","硕士学位及以上","研究生-(03)法学","研究生-(0301)法学",null,null,"0996-7105096","主要从事法务、执法相关工作"]
[13,"20251013","若羌县文化体育广播电视和旅游局","若羌县文博馆","业务科室","工作人员","专业技术岗位",1,"35周岁及以下","研究生及以上","硕士学位及以上","研究生-(06)历史学,研究生-(12)管理学","研究生-(0601)考古学,研究生-(0602)中国史,研究生-(0603)世界史,研究生-(0651)文物与博物馆,研究生-(1254)旅游管理",null,null,"0996-7105096","主要从事县域内旅游文化与博物馆相关业务工作"]
[14,"20251014","若羌县融媒体中心","若羌县融媒体中心","新闻信息采集中心","新媒体编辑","专业技术岗位",1,"35周岁及以下","研究生及以上","硕士学位及以上","研究生-(05)文学","研究生-(0501)中国语言文学,研究生-(0503)新闻传播学",null,"限少数民族报考","0996-7105096","主要从事新媒体制作、采编等工作"]
[15,"20251015","若羌县统计局","若羌县统计普查中心","综合科室","工作人员","专业技术岗位",1,"35周岁及以下","研究生及以上","硕士学位及以上","研究生-(02)经济学,研究生-(07)理学","研究生-(0202)应用经济学,研究生-(0252)应用统计,研究生-(0270)统计学,研究生-(0701)数学",null,null,"0996-7105096","主要从事国民经济综合核算、固定资产投资、建筑业、房地产、工业和大型普查及专项调查等工作。"]
[16,"20251016","若羌县应急管理局","若羌县矿山安全服务保障中心","业务科室","工作人员","专业技术岗位",1,"35周岁及以下","研究生及以上","硕士学位及以上","研究生-(08)工学","研究生-(0819)矿业工程",null,"限少数民族报考","0996-7105096","主要从事矿山安全服务保障工作"]
[17,"20251017","若羌县林业和草原局","若羌县胡杨林管护站","业务室","技术员","专业技术岗位",1,"35周岁及以下","研究生及以上","硕士学位及以上","研究生-(08)工学,研究生-(09)农学,研究生-(12)管理学","研究生-(0812)计算机科学与技术,研究生-(0829)林业工程,研究生-(0907)林学,研究生-(0909)草学,研究生-(0954)林业,研究生-(1203)农林经济管理",null,"限少数民族报考","0996-7105096","主要从事森林、草原、湿地等资源的管理和保护工作"]
[18,"20251018","若羌县卫生健康委员会","若羌县人民医院","内科","医生","专业技术岗位",1,"40周岁及以下","研究生及以上","硕士学位及以上","研究生-(10)医学","研究生-(1002)临床医学,研究生-(1051)临床医学","研究生-(100201)内科学,研究生-(105101)内科学","需取得执业医师执业证书（执业范围：内科专业）或已通过医师执业考试执业范围未确定；\n限少数民族报考","0996-7105096","主要从事内科诊疗等相关工作"]
[19,"20251019","若羌县卫生健康委员会","若羌县人民医院","中医康复理疗科","医生","专业技术岗位",1,"40周岁及以下","研究生及以上","硕士学位及以上","研究生-(10)医学","研究生-(1002)临床医学,研究生-(1051)临床医学","研究生-(100215)康复医学与理疗学,研究生-(105110)康复医学与理疗学","需取得执业医师执业证书（执业范围：康复医学专业）或已通过医师执业考试执业范围未确定。","0996-7105096","主要从事中医康复理疗科诊疗等相关工作"]
[20,"20251020","若羌县卫生健康委员会","若羌县人民医院","功能科","医生","专业技术岗位",1,"40周岁及以下","研究生及以上","硕士学位及以上","研究生-(10)医学","研究生-(1002)临床医学,研究生-(1051)临床医学","研究生-(100207)影像医学与核医学,研究生-(105124)超声医学","需取得执业医师执业证书（执业范围：医学影像和放射治疗专业）或已通过医师执业考试执业范围未确定。","0996-7105096","主要从事超声诊疗工作"]
[21,"20251021","若羌县卫生健康委员会","若羌县人民医院","妇产科","医生","专业技术岗位",1,"40周岁及以下","研究生及以上","硕士学位及以上","研究生-(10)医学","研究生-(1002)临床医学,研究生-(1051)临床医学","研究生-(100211)妇产科学,研究生-(105115)妇产科学","需取得执业医师执业证书（执业范围：妇产科专业）或已通过医师执业考试执业范围未确定；\n限少数民族报考","0996-7105096","主要从事妇产科诊疗等相关工作"]
[22,"20251022","若羌县卫生健康委员会","若羌县人民医院","儿科","医生","专业技术岗位",1,"40周岁及以下","研究生及以上","硕士学位及以上","研究生-(10)医学","研究生-(1002)临床医学,研究生-(1051)临床医学","研究生-(100202)儿科学,研究生-(105102)儿科学","需取得执业医师执业证书（执业范围：儿科专业）或已通过医师执业考试执业范围未确定。","0996-7105096","主要从事儿科诊疗等相关工作"]
[23,"20251023","若羌县卫生健康委员会","若羌县人民医院","眼科","医生","专业技术岗位",1,"40周岁及以下","研究生及以上","硕士学位及以上","研究生-(10)医学","研究生-(1002)临床医学,研究生-(1051)临床医学","研究生-(100212)眼科学,研究生-(105116)眼科学","需取得执业医师执业证书（执业范围：眼科专业）或已通过医师执业考试执业范围未确定。","0996-7105096","主要从事眼科诊疗等相关工作"]
[{"$nulls":7},{"$f":"SUM(H5:H27)","v":24}]

{"sheet":"库尔勒经济技术开发区","index":10,"n_rows":11,"n_cols":18,"rows_kept":11,"merged":[[0,0,0,17],[1,0,1,17],[2,0,3,0],[2,1,3,1],[2,2,3,2],[2,3,3,3],[2,4,3,4],[2,5,3,5],[2,6,3,6],[2,7,3,7],[2,8,2,14],[2,15,3,15],[2,16,3,16],[2,17,3,17]]}
["新疆巴州事业单位2025年下半年引进硕士研究生等优秀专业人才岗位表（库尔勒经济技术开发区）"]
["引才优惠政策：\n人才公寓方面。依据《库尔勒经济技术开发区人才公寓申请和使用管理办法（试行）》，可免费居住人才公寓1年。"]
["序号","岗位代码","主管单位","用人单位","招聘科室","岗位名称","岗位类别","招聘人数","岗位条件",{"$nulls":6},"政策咨询电话","岗位描述","备注"]
[{"$nulls":8},"年龄","学历","学位","专业大类及代码","专业类及代码","研究生:三级专业目录","岗位其他要求"]
[1,"20251101","库尔勒经济技术开发区管理委员会","库尔勒经济技术开发区招商局","业务科","工作人员","专业技术岗位",1,"30周岁及以下","研究生及以上","硕士学位及以上","研究生-(12)管理学","研究生-(1202)工商管理学",null,"限少数民族报考","0996-2119712","主要从事招商工作"]
[2,"20251102","库尔勒经济技术开发区管理委员会","库尔勒经济技术开发区国库集中支付中心","业务科","工作人员","专业技术岗位",1,"30周岁及以下","研究生及以上","硕士学位及以上","研究生-(12)管理学","研究生-(1253)会计",null,"需取得初级及以上会计专业技术资格","0996-2119712","主要从事预算编制、会计核算等工作"]
[3,"20251103","库尔勒经济技术开发区管理委员会","库尔勒经济技术开发区政法统战事务中心","业务科","工作人员","专业技术岗位",1,"30周岁及以下","研究生及以上","硕士学位及以上","研究生-(03)法学","研究生-(0301)法学",null,"需具有A类法律职业资格","0996-2119712","主要从事法律相关工作"]
[4,"20251104","库尔勒经济技术开发区管理委员会","库尔勒经济技术开发区智库研究所","业务科","工作人员","专业技术岗位",1,"30周岁及以下","研究生及以上","硕士学位及以上","研究生-(02)经济学","研究生-(0202)应用经济学","研究生-(020201)国民经济学,研究生-(020205)产业经济学,研究生-(020206)国际贸易学",null,"0996-2119712","主要从事金融分析研究等工作"]
[5,"20251105","库尔勒经济技术开发区管理委员会","库尔勒经济技术开发区第一中学","教务室","教师","专业技术岗位",1,"30周岁及以下","研究生及以上","硕士学位及以上","研究生-(04)教育学","研究生-(0451)教育","研究生-(045103)学科教学 (语文)","需取得初中语文教师资格证书","0996-2119712","主要从事语文教学"]
[6,"20251106","库尔勒经济技术开发区管理委员会","库尔勒经济技术开发区第一中学","教务室","教师","专业技术岗位",1,"30周岁及以下","研究生及以上","硕士学位及以上","研究生-(04)教育学","研究生-(0451)教育","研究生-(045104)学科教学(数学) ","1.需取得初中数学教师资格证书\n2.限少数民族报考","0996-2119712","主要从事数学教学"]
[{"$nulls":7},{"$f":"SUM(H5:H10)","v":6}]